Publisher Label,Publisher URI,"Supplier","Net Amount (£)","Organisational Unit","Merchant Category Code","Purpose","Payment Date"
"Wolverhampton City Council","http://opendatacommunities.org/id/metropolitan-district-council/wolverhampton","DONT PANIC PROJECT VT","290","Workforce Development","8999","Training Expenses","30/06/16"
"Wolverhampton City Council","http://opendatacommunities.org/id/metropolitan-district-council/wolverhampton","SAINSBURYS (2340)","30.72","Childrens with Disabilities Team","5411","Provisions (Not for resale)","30/06/16"
"Wolverhampton City Council","http://opendatacommunities.org/id/metropolitan-district-council/wolverhampton","TRFSA   THOMSONREUTERS","2722.2","Legal Services","8999","Services - Professional Fees","30/06/16"
"Wolverhampton City Council","http://opendatacommunities.org/id/metropolitan-district-council/wolverhampton","EE & T-MOBILE","161.98","Civic Halls Non Direct Management A/C","4814","Comms - Telephone Call charges","30/06/16"
"Wolverhampton City Council","http://opendatacommunities.org/id/metropolitan-district-council/wolverhampton","Amazon UK Marketplace","99.99","Towers Outdoor Education Centre","5942","Equipment - Purchase","30/06/16"
"Wolverhampton City Council","http://opendatacommunities.org/id/metropolitan-district-council/wolverhampton","SAIN WEDNESFIELD","150","Duke Street Bungalows","6011","Client Transport","30/06/16"
"Wolverhampton City Council","http://opendatacommunities.org/id/metropolitan-district-council/wolverhampton","Amazon UK Marketplace","-199","Technical Support","5999","Equipment - Purchase","30/06/16"
"Wolverhampton City Council","http://opendatacommunities.org/id/metropolitan-district-council/wolverhampton","BT PAY BY PHONE","133.83","Civic Halls Non Direct Management A/C","4814","Comms - Telephone Call charges","30/06/16"
"Wolverhampton City Council","http://opendatacommunities.org/id/metropolitan-district-council/wolverhampton","Amazon UK Marketplace","14.7","Parks - Management and Admin","5942","Books","30/06/16"
"Wolverhampton City Council","http://opendatacommunities.org/id/metropolitan-district-council/wolverhampton","WWW.HOBARTUK.CO.UK","258.17","Towers Outdoor Education Centre","5722","Fixtures and Fittings - Purchases","30/06/16"
"Wolverhampton City Council","http://opendatacommunities.org/id/metropolitan-district-council/wolverhampton","CENTURY ELECTRICAL WHO","49.5","Hickman Avenue Depot","5065","R&M - Departmental planned (external)","30/06/16"
"Wolverhampton City Council","http://opendatacommunities.org/id/metropolitan-district-council/wolverhampton","NATURAL HIST. MUSEUM","539.6","NHM Wildlife Photographer of the Year","5970","Materials for resale","30/06/16"
"Wolverhampton City Council","http://opendatacommunities.org/id/metropolitan-district-council/wolverhampton","Cross Country","66.3","Communications & Marketing - General","4112","Public Transport","30/06/16"
"Wolverhampton City Council","http://opendatacommunities.org/id/metropolitan-district-council/wolverhampton","Amazon Prime","-7.9","Civic Halls Non Direct Management A/C","5968","Subscriptions","30/06/16"
"Wolverhampton City Council","http://opendatacommunities.org/id/metropolitan-district-council/wolverhampton","DONT PANIC PROJECT VT","141.67","CIN/CP S17 SW Unit - Area 5","8999","Conference Expenses","30/06/16"
"Wolverhampton City Council","http://opendatacommunities.org/id/metropolitan-district-council/wolverhampton","Amazon UK Marketplace","35.99","Global Budgets","5942","Books","30/06/16"
"Wolverhampton City Council","http://opendatacommunities.org/id/metropolitan-district-council/wolverhampton","SAIN WEDNESFIELD","150","Duke Street Bungalows","6011","Client Transport","30/06/16"
"Wolverhampton City Council","http://opendatacommunities.org/id/metropolitan-district-council/wolverhampton","TRAVELODGE","107.42","Adoption and Residence Team & Allowances","3615","Accommodation Costs","30/06/16"
"Wolverhampton City Council","http://opendatacommunities.org/id/metropolitan-district-council/wolverhampton","TRAINLINE","36.26","Head of Service - CINCP","4112","Public Transport","30/06/16"
"Wolverhampton City Council","http://opendatacommunities.org/id/metropolitan-district-council/wolverhampton","PREMIER INN","205.5","Headstart","3811","Services - Supplies & Services to users","30/06/16"
"Wolverhampton City Council","http://opendatacommunities.org/id/metropolitan-district-council/wolverhampton","TRAINLINE","197.88","Safeguarding Admin Resource","4112","Public Transport","30/06/16"
"Wolverhampton City Council","http://opendatacommunities.org/id/metropolitan-district-council/wolverhampton","PARK MOBILE","5.33","Members Expenses","7523","Parking Fees","30/06/16"
"Wolverhampton City Council","http://opendatacommunities.org/id/metropolitan-district-council/wolverhampton","ASDA SUPERSTORE","20","Upper Pendeford Farm Childrens Home","5411","Provisions (Not for resale)","30/06/16"
"Wolverhampton City Council","http://opendatacommunities.org/id/metropolitan-district-council/wolverhampton","WWW.UCAS.COM","12","LAC Transitions Team","8220","Training Expenses","30/06/16"
"Wolverhampton City Council","http://opendatacommunities.org/id/metropolitan-district-council/wolverhampton","SAINSBURYS (2340)","54","Discretionary Fund","5411","Provisions (Not for resale)","30/06/16"
"Wolverhampton City Council","http://opendatacommunities.org/id/metropolitan-district-council/wolverhampton","CO-OPERATIVE TRAVE","527.6","Leonardo Da Vinci Project","6051","Subsistence","30/06/16"
"Wolverhampton City Council","http://opendatacommunities.org/id/metropolitan-district-council/wolverhampton","TRAINLINE","105.57","LAC Transitions Team","4112","Client Allowances","30/06/16"
"Wolverhampton City Council","http://opendatacommunities.org/id/metropolitan-district-council/wolverhampton","Amazon UK Marketplace","33.9","Parks - Management and Admin","5942","Books","30/06/16"
"Wolverhampton City Council","http://opendatacommunities.org/id/metropolitan-district-council/wolverhampton","WWW.HOBARTUK.CO.UK","258.17","Towers Outdoor Education Centre","5722","Equipment - Purchase","30/06/16"
"Wolverhampton City Council","http://opendatacommunities.org/id/metropolitan-district-council/wolverhampton","HALX WOLVERHAMPTON MAN","80","Revenues","6011","Services - Fees and Charges","30/06/16"
"Wolverhampton City Council","http://opendatacommunities.org/id/metropolitan-district-council/wolverhampton","SAIN ST MARKS","250","Childrens with Disabilities Team","6011","Financial Assistance In Exceptional Circ","30/06/16"
"Wolverhampton City Council","http://opendatacommunities.org/id/metropolitan-district-council/wolverhampton","G & M HALE LTD","62.3","Creative Studies Delivery Area","5992","Materials for resale","29/06/16"
"Wolverhampton City Council","http://opendatacommunities.org/id/metropolitan-district-council/wolverhampton","REGISTRARS OFFICE","20","Adoption and Residence Team & Allowances","8299","Services - Fees and Charges","29/06/16"
"Wolverhampton City Council","http://opendatacommunities.org/id/metropolitan-district-council/wolverhampton","Amazon UK Marketplace","102.53","Towers Outdoor Education Centre","5942","Equipment - Purchase","29/06/16"
"Wolverhampton City Council","http://opendatacommunities.org/id/metropolitan-district-council/wolverhampton","G & M HALE (SUNDRIES)","9.95","Creative Studies Delivery Area","5992","Materials for resale","29/06/16"
"Wolverhampton City Council","http://opendatacommunities.org/id/metropolitan-district-council/wolverhampton","G & M HALE LTD","41","Discretionary Fund","5992","Materials","29/06/16"
"Wolverhampton City Council","http://opendatacommunities.org/id/metropolitan-district-council/wolverhampton","WWW.CORAM.ORG.UK","30.85","Adoption and Residence Team & Allowances","8398","Books","29/06/16"
"Wolverhampton City Council","http://opendatacommunities.org/id/metropolitan-district-council/wolverhampton","Amazon UK Marketplace","14.39","Global Budgets","5942","Books","29/06/16"
"Wolverhampton City Council","http://opendatacommunities.org/id/metropolitan-district-council/wolverhampton","WWW.TRANSPORTXTRA.COM","108.33","Transportation General","7399","Subscriptions","29/06/16"
"Wolverhampton City Council","http://opendatacommunities.org/id/metropolitan-district-council/wolverhampton","PREMIER INN","62.49","Workforce Development","3811","Accommodation Costs","29/06/16"
"Wolverhampton City Council","http://opendatacommunities.org/id/metropolitan-district-council/wolverhampton","SPEEDY ASSET SRVCS","150","Leonardo Da Vinci Project","7394","Equipment - Purchase","29/06/16"
"Wolverhampton City Council","http://opendatacommunities.org/id/metropolitan-district-council/wolverhampton","M6 TOLL","4.58","Members Expenses","4784","Parking Fees","29/06/16"
"Wolverhampton City Council","http://opendatacommunities.org/id/metropolitan-district-council/wolverhampton","FLYBE.COM 26740704677310","161.49","Headstart","4511","Public Transport","29/06/16"
"Wolverhampton City Council","http://opendatacommunities.org/id/metropolitan-district-council/wolverhampton","ALTON TOWERS","30.96","Headstart","7991","Educ Trips, Holidays, Outings, Activity","29/06/16"
"Wolverhampton City Council","http://opendatacommunities.org/id/metropolitan-district-council/wolverhampton","Virgintrains.co.uk","102.1","Headstart","4112","Public Transport","29/06/16"
"Wolverhampton City Council","http://opendatacommunities.org/id/metropolitan-district-council/wolverhampton","Flybe2674 2674070467680","161.49","Headstart","4511","Public Transport","29/06/16"
"Wolverhampton City Council","http://opendatacommunities.org/id/metropolitan-district-council/wolverhampton","LIDL UK","4.37","Education And Access","5411","Provisions (Not for resale)","29/06/16"
"Wolverhampton City Council","http://opendatacommunities.org/id/metropolitan-district-council/wolverhampton","PREMIER INN","158.32","Workforce Development","3811","Accommodation Costs","29/06/16"
"Wolverhampton City Council","http://opendatacommunities.org/id/metropolitan-district-council/wolverhampton","TESCO STORES 5194","223.42","Towers Outdoor Education Centre","5411","Provisions (Not for resale)","29/06/16"
"Wolverhampton City Council","http://opendatacommunities.org/id/metropolitan-district-council/wolverhampton","TRAINLINE","150.55","Customer Services","4112","Public Transport","29/06/16"
"Wolverhampton City Council","http://opendatacommunities.org/id/metropolitan-district-council/wolverhampton","SCREWFIX DIRECT","62.46","Telecare","5211","Materials","29/06/16"
"Wolverhampton City Council","http://opendatacommunities.org/id/metropolitan-district-council/wolverhampton","G & M HALE (SUNDRIES)","11.2","Discretionary Fund","5992","Materials","29/06/16"
"Wolverhampton City Council","http://opendatacommunities.org/id/metropolitan-district-council/wolverhampton","DUNELM (SOFT FURNISHIN","15.92","Ernest Bold Court","5714","Equipment - Purchase","29/06/16"
"Wolverhampton City Council","http://opendatacommunities.org/id/metropolitan-district-council/wolverhampton","WEST COAST TRAINS","6.9","CIN/CP S17 SW Unit - Area 3B","4112","Public Transport","29/06/16"
"Wolverhampton City Council","http://opendatacommunities.org/id/metropolitan-district-council/wolverhampton","NETWORK WEST MIDLANDS","210","CIN/CP S17 SW Unit - Area 3B","9399","Services - Fees and Charges","29/06/16"
"Wolverhampton City Council","http://opendatacommunities.org/id/metropolitan-district-council/wolverhampton","BRITANNIA","90.83","CIN/CP S17 SW Unit - Area 8","7011","Services - Supplies & Services to users","29/06/16"
"Wolverhampton City Council","http://opendatacommunities.org/id/metropolitan-district-council/wolverhampton","FLYBE.COM 26740704675270","161.49","Headstart","4511","Public Transport","29/06/16"
"Wolverhampton City Council","http://opendatacommunities.org/id/metropolitan-district-council/wolverhampton","HASTINGS INSURANCE","27.92","LAC Education Team (LACE)","6300","Services - Supplies & Services to users","29/06/16"
"Wolverhampton City Council","http://opendatacommunities.org/id/metropolitan-district-council/wolverhampton","REGISTRARS OFFICE","10","Adoption and Residence Team & Allowances","8299","Services - Fees and Charges","29/06/16"
"Wolverhampton City Council","http://opendatacommunities.org/id/metropolitan-district-council/wolverhampton","Amazon UK Marketplace","5.54","LAC Transitions Team","5942","Client Allowances","29/06/16"
"Wolverhampton City Council","http://opendatacommunities.org/id/metropolitan-district-council/wolverhampton","REDWINGS LODGE","144.85","Referral Team CIN - S17","7011","Services - Supplies & Services to users","28/06/16"
"Wolverhampton City Council","http://opendatacommunities.org/id/metropolitan-district-council/wolverhampton","COMPANIES HOUSE","13","Legal Services","9399","Services - Professional Fees","28/06/16"
"Wolverhampton City Council","http://opendatacommunities.org/id/metropolitan-district-council/wolverhampton","Amazon UK Marketplace","13.08","LAC Transitions Team","5942","Client Allowances","28/06/16"
"Wolverhampton City Council","http://opendatacommunities.org/id/metropolitan-district-council/wolverhampton","POST OFFICE COUNTER","128","Vulnerable Young Persons Team","9402","Comms - Postage","28/06/16"
"Wolverhampton City Council","http://opendatacommunities.org/id/metropolitan-district-council/wolverhampton","Virgintrains.co.uk","16.8","CIN/CP S17 SW Unit - Area 7","4112","Public Transport","28/06/16"
"Wolverhampton City Council","http://opendatacommunities.org/id/metropolitan-district-council/wolverhampton","ASDA SUPERSTORE","165.4","Upper Pendeford Farm Childrens Home","5411","Provisions (Not for resale)","28/06/16"
"Wolverhampton City Council","http://opendatacommunities.org/id/metropolitan-district-council/wolverhampton","BARCLAYS BANK PLC","250","CIN/CP S17 SW Unit - Area 5","6011","Financial Assistance In Exceptional Circ","28/06/16"
"Wolverhampton City Council","http://opendatacommunities.org/id/metropolitan-district-council/wolverhampton","National Car Parks Ltd","5.5","Headstart","7523","Car Allowances","28/06/16"
"Wolverhampton City Council","http://opendatacommunities.org/id/metropolitan-district-council/wolverhampton","Amazon UK Marketplace","7.43","Global Budgets","5942","Books","28/06/16"
"Wolverhampton City Council","http://opendatacommunities.org/id/metropolitan-district-council/wolverhampton","GRO HM PASSPORT OFFICE","23.4","Head of Service - CINCP","9399","Services - Professional Fees","28/06/16"
"Wolverhampton City Council","http://opendatacommunities.org/id/metropolitan-district-council/wolverhampton","REDWINGS LODGE","154.85","CIN/CP S17 SW Unit - Area 7","7011","Services - Supplies & Services to users","28/06/16"
"Wolverhampton City Council","http://opendatacommunities.org/id/metropolitan-district-council/wolverhampton","WM MORRISON 024","200","CIN/CP S17 SW Unit - Area 2","5411","Provisions (Not for resale)","28/06/16"
"Wolverhampton City Council","http://opendatacommunities.org/id/metropolitan-district-council/wolverhampton","NATWEST BANK","250","Delivery & OCE Development","6011","Provisions (Not for resale)","28/06/16"
"Wolverhampton City Council","http://opendatacommunities.org/id/metropolitan-district-council/wolverhampton","ASDA SUPERSTORE","92.89","Upper Pendeford Farm Childrens Home","5411","Provisions (Not for resale)","28/06/16"
"Wolverhampton City Council","http://opendatacommunities.org/id/metropolitan-district-council/wolverhampton","TRAINLINE","76.81","Adoption and Residence Team & Allowances","4112","Public Transport","28/06/16"
"Wolverhampton City Council","http://opendatacommunities.org/id/metropolitan-district-council/wolverhampton","POUNDLAND LTD 1463","9.1","Language Studies Delivery Area","5310","Equipment - Purchase","28/06/16"
"Wolverhampton City Council","http://opendatacommunities.org/id/metropolitan-district-council/wolverhampton","REDWINGS LODGE","344.89","CIN/CP S17 SW Unit - Area 3B","7011","Services - Supplies & Services to users","28/06/16"
"Wolverhampton City Council","http://opendatacommunities.org/id/metropolitan-district-council/wolverhampton","Amazon UK Marketplace","9.67","EIP Locality 8","5942","Equipment - Purchase","28/06/16"
"Wolverhampton City Council","http://opendatacommunities.org/id/metropolitan-district-council/wolverhampton","Amazon UK Marketplace","11.49","Parent / Partnership Service","5942","Equipment - Purchase","28/06/16"
"Wolverhampton City Council","http://opendatacommunities.org/id/metropolitan-district-council/wolverhampton","BOOTS","16.5","CIN/CP S17 SW Unit - Area 5","5912","Toilet Requisites","28/06/16"
"Wolverhampton City Council","http://opendatacommunities.org/id/metropolitan-district-council/wolverhampton","ARGOS RETAIL GROUP","405.77","LAC Transitions Team","5310","Client Allowances","28/06/16"
"Wolverhampton City Council","http://opendatacommunities.org/id/metropolitan-district-council/wolverhampton","ASDA SUPERSTORE","17.05","CIN/CP S17 SW Unit - Area 5","5411","Financial Assistance In Exceptional Circ","28/06/16"
"Wolverhampton City Council","http://opendatacommunities.org/id/metropolitan-district-council/wolverhampton","WILKO RETAIL LIMIT","7.15","Language Studies Delivery Area","5722","Equipment - Purchase","28/06/16"
"Wolverhampton City Council","http://opendatacommunities.org/id/metropolitan-district-council/wolverhampton","STATION HOTEL,","49.95","CIN/CP S17 SW Unit - Area 6","7011","Accommodation Costs","28/06/16"
"Wolverhampton City Council","http://opendatacommunities.org/id/metropolitan-district-council/wolverhampton","ASDA HOME SHOPPING","-0.2","Ernest Bold Court","5411","Provisions (Not for resale)","28/06/16"
"Wolverhampton City Council","http://opendatacommunities.org/id/metropolitan-district-council/wolverhampton","BRITANNIA","45.83","CIN/CP S17 SW Unit - Area 8","7011","Services - Supplies & Services to users","28/06/16"
"Wolverhampton City Council","http://opendatacommunities.org/id/metropolitan-district-council/wolverhampton","ASDA SUPERSTORE","100","CIN/CP S17 SW Unit - Area 5","5411","Provisions (Not for resale)","28/06/16"
"Wolverhampton City Council","http://opendatacommunities.org/id/metropolitan-district-council/wolverhampton","TRAINLINE","33.41","CIN/CP S17 SW Unit - Area 5","4112","Public Transport","28/06/16"
"Wolverhampton City Council","http://opendatacommunities.org/id/metropolitan-district-council/wolverhampton","ARGOS LTD","874.97","Civic Halls Non Direct Management A/C","5310","Equipment - Purchase","28/06/16"
"Wolverhampton City Council","http://opendatacommunities.org/id/metropolitan-district-council/wolverhampton","TRAINLINE","83.13","LAC Transitions Team","4112","Client Allowances","28/06/16"
"Wolverhampton City Council","http://opendatacommunities.org/id/metropolitan-district-council/wolverhampton","Amazon UK Marketplace","19.78","Parent / Partnership Service","5942","Equipment - Purchase","28/06/16"
"Wolverhampton City Council","http://opendatacommunities.org/id/metropolitan-district-council/wolverhampton","UNTOUCHABLES","20","Cemeteries","5231","Materials","28/06/16"
"Wolverhampton City Council","http://opendatacommunities.org/id/metropolitan-district-council/wolverhampton","LONDON MIDLAND WEB","8.3","Condition Surveys","4112","Public Transport","28/06/16"
"Wolverhampton City Council","http://opendatacommunities.org/id/metropolitan-district-council/wolverhampton","ASDA HOME SHOPPING","79.48","Ernest Bold Court","5411","Provisions (Not for resale)","28/06/16"
"Wolverhampton City Council","http://opendatacommunities.org/id/metropolitan-district-council/wolverhampton","CARVER/WOLVERHAMPTON/L","50.93","Wholesale Market Facilities Management","5211","Cleaning Supplies and Materials","28/06/16"
"Wolverhampton City Council","http://opendatacommunities.org/id/metropolitan-district-council/wolverhampton","WWW.REDWINGSLODGEB","114.85","Emergency Duty Team","7011","Services - Supplies & Services to users","27/06/16"
"Wolverhampton City Council","http://opendatacommunities.org/id/metropolitan-district-council/wolverhampton","Amazon EU","58.32","LAC Transitions Team","5969","Client Allowances","27/06/16"
"Wolverhampton City Council","http://opendatacommunities.org/id/metropolitan-district-council/wolverhampton","ASDA HOME SHOPPING","-1.66","Ernest Bold Court","5411","Provisions (Not for resale)","27/06/16"
"Wolverhampton City Council","http://opendatacommunities.org/id/metropolitan-district-council/wolverhampton","WWW.ISTOCK.COM","250.4","Communications & Marketing - General","5971","Marketing \ Non-staff advertising","27/06/16"
"Wolverhampton City Council","http://opendatacommunities.org/id/metropolitan-district-council/wolverhampton","ARGOS LTD","16.62","Education And Access","5310","Equipment - Purchase","27/06/16"
"Wolverhampton City Council","http://opendatacommunities.org/id/metropolitan-district-council/wolverhampton","HERON FOODS LTD","10.18","EIP Locality 8","5499","Catering","27/06/16"
"Wolverhampton City Council","http://opendatacommunities.org/id/metropolitan-district-council/wolverhampton","MAILCHIMP","34.36","City Direct","7399","Equipment - Purchase","27/06/16"
"Wolverhampton City Council","http://opendatacommunities.org/id/metropolitan-district-council/wolverhampton","ARGOS RETAIL GROUP","129.99","Central Costs","5310","Equipment - Purchase","27/06/16"
"Wolverhampton City Council","http://opendatacommunities.org/id/metropolitan-district-council/wolverhampton","FTPE WEBTIS 1","74.4","LAC Transitions Team","4112","Client Allowances","27/06/16"
"Wolverhampton City Council","http://opendatacommunities.org/id/metropolitan-district-council/wolverhampton","MERCURE NORWICH HOTEL","149.04","Fostering Team & Allowances","7011","Services - Supplies & Services to users","27/06/16"
"Wolverhampton City Council","http://opendatacommunities.org/id/metropolitan-district-council/wolverhampton","SEESAWS DAY NURSERY","325.5","AES Staff Development","8351","Services - Supplies & Services to users","27/06/16"
"Wolverhampton City Council","http://opendatacommunities.org/id/metropolitan-district-council/wolverhampton","ARGOS LTD","286.91","CIN/CP S17 SW Unit - Area 2","5310","Equipment - Purchase","27/06/16"
"Wolverhampton City Council","http://opendatacommunities.org/id/metropolitan-district-council/wolverhampton","ARGOS LTD","-119.98","CIN/CP S17 SW Unit - Area 6","5310","Equipment - Purchase","27/06/16"
"Wolverhampton City Council","http://opendatacommunities.org/id/metropolitan-district-council/wolverhampton","HMCOURTS-SERVICE.G","20","Mental Health Assessment & Care Mgmt","9222","Services - Fees and Charges","27/06/16"
"Wolverhampton City Council","http://opendatacommunities.org/id/metropolitan-district-council/wolverhampton","Amazon Prime","65.83","Civic Halls Non Direct Management A/C","5968","Computing - Purchase of Hardware","27/06/16"
"Wolverhampton City Council","http://opendatacommunities.org/id/metropolitan-district-council/wolverhampton","PRINTCARRIER.COM","50.4","Civic Halls Non Direct Management A/C","2741","Marketing \ Non-staff advertising","27/06/16"
"Wolverhampton City Council","http://opendatacommunities.org/id/metropolitan-district-council/wolverhampton","ASDA HOME SHOPPING","99.36","Ernest Bold Court","5411","Provisions (Not for resale)","27/06/16"
"Wolverhampton City Council","http://opendatacommunities.org/id/metropolitan-district-council/wolverhampton","PAYPAL  BARNARDOS","40","CIN/CP Social Work Unit - Area 6","8999","Services - Professional Fees","27/06/16"
"Wolverhampton City Council","http://opendatacommunities.org/id/metropolitan-district-council/wolverhampton","WM MORRISON 024","20.6","Community Enablement","5411","Provisions (Not for resale)","27/06/16"
"Wolverhampton City Council","http://opendatacommunities.org/id/metropolitan-district-council/wolverhampton","Amazon UK Marketplace","5.2","EIP Locality 8","5942","Books","27/06/16"
"Wolverhampton City Council","http://opendatacommunities.org/id/metropolitan-district-council/wolverhampton","ARGOS LTD","70.76","CIN/CP S17 SW Unit - Area 2","5310","Equipment - Purchase","27/06/16"
"Wolverhampton City Council","http://opendatacommunities.org/id/metropolitan-district-council/wolverhampton","ARGOS LTD","10.99","EIP Locality 1","5310","Equipment - Purchase","27/06/16"
"Wolverhampton City Council","http://opendatacommunities.org/id/metropolitan-district-council/wolverhampton","Amazon EU","9.15","EIP Locality 8","5969","Equipment - Purchase","27/06/16"
"Wolverhampton City Council","http://opendatacommunities.org/id/metropolitan-district-council/wolverhampton","ARGOS LTD","-89.99","EIP Locality 1","5310","Equipment - Purchase","27/06/16"
"Wolverhampton City Council","http://opendatacommunities.org/id/metropolitan-district-council/wolverhampton","ROYAL MAIL  0845606040","2","Specialist Support Service - North","9402","Comms - Postage","27/06/16"
"Wolverhampton City Council","http://opendatacommunities.org/id/metropolitan-district-council/wolverhampton","WILKO.COM","42.75","CIN - Referral Hub","5722","Equipment - Purchase","27/06/16"
"Wolverhampton City Council","http://opendatacommunities.org/id/metropolitan-district-council/wolverhampton","CARVER/WOLVERHAMPTON/L","46.54","Creative Studies Delivery Area","5211","Materials","27/06/16"
"Wolverhampton City Council","http://opendatacommunities.org/id/metropolitan-district-council/wolverhampton","B&M RETAIL LTD","29.12","EIP Locality 1","5310","Equipment - Purchase","27/06/16"
"Wolverhampton City Council","http://opendatacommunities.org/id/metropolitan-district-council/wolverhampton","SAINSBURYS SACAT (2340","4.81","Mayoral Expenses","5411","Hospitality","27/06/16"
"Wolverhampton City Council","http://opendatacommunities.org/id/metropolitan-district-council/wolverhampton","WWW.NISBETS.COM","119.92","Towers Outdoor Education Centre","5964","Equipment - Purchase","27/06/16"
"Wolverhampton City Council","http://opendatacommunities.org/id/metropolitan-district-council/wolverhampton","ARGOS LTD","16.66","LAC Transitions Team","5310","Client Allowances","27/06/16"
"Wolverhampton City Council","http://opendatacommunities.org/id/metropolitan-district-council/wolverhampton","WEST MIDLANDS HIRE & H","159","Electoral Registration","7513","Hire of Vehices - Fleet Management","27/06/16"
"Wolverhampton City Council","http://opendatacommunities.org/id/metropolitan-district-council/wolverhampton","ARGOS LTD","2.74","LAC Transitions Team","5310","Client Allowances","27/06/16"
"Wolverhampton City Council","http://opendatacommunities.org/id/metropolitan-district-council/wolverhampton","SCREWFIX DIRECT","362.94","Street Lighting Maintenance","5211","Materials","27/06/16"
"Wolverhampton City Council","http://opendatacommunities.org/id/metropolitan-district-council/wolverhampton","ARGOS LTD","93.94","CIN/CP S17 SW Unit - Area 2","5310","Equipment - Purchase","27/06/16"
"Wolverhampton City Council","http://opendatacommunities.org/id/metropolitan-district-council/wolverhampton","Virgintrains.co.uk","131.1","LAC Team","4112","Public Transport","27/06/16"
"Wolverhampton City Council","http://opendatacommunities.org/id/metropolitan-district-council/wolverhampton","THE POST OFFICE","6.45","Black Art Movement","9402","Comms - Postage","27/06/16"
"Wolverhampton City Council","http://opendatacommunities.org/id/metropolitan-district-council/wolverhampton","HM PASSPORT OFFICE","72.5","LAC Transitions Team","9399","Client Allowances","27/06/16"
"Wolverhampton City Council","http://opendatacommunities.org/id/metropolitan-district-council/wolverhampton","HIBA TOY PALACE","158.28","Education And Access","5945","Equipment - Purchase","24/06/16"
"Wolverhampton City Council","http://opendatacommunities.org/id/metropolitan-district-council/wolverhampton","Virgintrains.co.uk","358","Strategic Asset Management - General","4112","Public Transport","24/06/16"
"Wolverhampton City Council","http://opendatacommunities.org/id/metropolitan-district-council/wolverhampton","REDWINGS LODGE","33.29","Emergency Duty Team","7011","Services - Supplies & Services to users","24/06/16"
"Wolverhampton City Council","http://opendatacommunities.org/id/metropolitan-district-council/wolverhampton","Amazon UK Marketplace","-50.81","Inclusion Support","5999","Books","24/06/16"
"Wolverhampton City Council","http://opendatacommunities.org/id/metropolitan-district-council/wolverhampton","ARGOS DIRECT","186.93","CIN/CP S17 SW Unit - Area 1","5310","Equipment - Purchase","24/06/16"
"Wolverhampton City Council","http://opendatacommunities.org/id/metropolitan-district-council/wolverhampton","SAINSBURYS 2040","3.8","Ernest Bold Court","5411","Provisions (Not for resale)","24/06/16"
"Wolverhampton City Council","http://opendatacommunities.org/id/metropolitan-district-council/wolverhampton","WWW ESPARES CO UK","5.82","Bert Williams Leisure Centre","5065","Equipment - R & M","24/06/16"
"Wolverhampton City Council","http://opendatacommunities.org/id/metropolitan-district-council/wolverhampton","TESCO GIFT CARD","101.5","Transformation","8999","Services - Professional Fees","24/06/16"
"Wolverhampton City Council","http://opendatacommunities.org/id/metropolitan-district-council/wolverhampton","JONES SKIP HIRE (WOLVE","4.5","CIN/CP S17 SW Unit - Area 4","7399","Services - Fees and Charges","24/06/16"
"Wolverhampton City Council","http://opendatacommunities.org/id/metropolitan-district-council/wolverhampton","Virgintrains.co.uk","358","Environmental Health - Pub Prot - Gen","4112","Services - Fees and Charges","24/06/16"
"Wolverhampton City Council","http://opendatacommunities.org/id/metropolitan-district-council/wolverhampton","HEARTLANDS FURNITURE W","199","LAC Transitions Team","5712","Client Allowances","24/06/16"
"Wolverhampton City Council","http://opendatacommunities.org/id/metropolitan-district-council/wolverhampton","ROYAL CARPETS","325","LAC Transitions Team","5713","Client Allowances","24/06/16"
"Wolverhampton City Council","http://opendatacommunities.org/id/metropolitan-district-council/wolverhampton","Virgintrains.co.uk","64.4","Information Governance Team","4112","Public Transport","24/06/16"
"Wolverhampton City Council","http://opendatacommunities.org/id/metropolitan-district-council/wolverhampton","WILKO RETAIL LIMIT","6.25","Delivery & OCE Development","5722","Equipment - Purchase","24/06/16"
"Wolverhampton City Council","http://opendatacommunities.org/id/metropolitan-district-council/wolverhampton","TRAINLINE","127.3","Service Director City Environment","4112","Public Transport","24/06/16"
"Wolverhampton City Council","http://opendatacommunities.org/id/metropolitan-district-council/wolverhampton","JONES SKIP HIRE (WOLVE","142.42","CIN/CP S17 SW Unit - Area 4","7399","Equipment - Hire","24/06/16"
"Wolverhampton City Council","http://opendatacommunities.org/id/metropolitan-district-council/wolverhampton","Virgintrains.co.uk","25.2","Children & Young People Support Costs","4112","Public Transport","24/06/16"
"Wolverhampton City Council","http://opendatacommunities.org/id/metropolitan-district-council/wolverhampton","BRITANNIA","115.83","CIN/CP S17 SW Unit - Area 8","7011","Accommodation Costs","24/06/16"
"Wolverhampton City Council","http://opendatacommunities.org/id/metropolitan-district-council/wolverhampton","PREMIER INN","219.97","Black Art Movement","3811","Accommodation Costs","24/06/16"
"Wolverhampton City Council","http://opendatacommunities.org/id/metropolitan-district-council/wolverhampton","TVLICENSING.CO.UK","145.5","Central Baths","7392","Services - General Licences","24/06/16"
"Wolverhampton City Council","http://opendatacommunities.org/id/metropolitan-district-council/wolverhampton","BRITANNIA","35.83","Emergency Duty Team","7011","Services - Supplies & Services to users","24/06/16"
"Wolverhampton City Council","http://opendatacommunities.org/id/metropolitan-district-council/wolverhampton","HOTELS COM130557918960","264.8","CIN - Referral Hub","4722","Public Transport","24/06/16"
"Wolverhampton City Council","http://opendatacommunities.org/id/metropolitan-district-council/wolverhampton","PUPPETS BY POST","32.5","Craftplay","5945","Equipment - Purchase","24/06/16"
"Wolverhampton City Council","http://opendatacommunities.org/id/metropolitan-district-council/wolverhampton","PRZCHARGE.PREZI.COM","664.95","Communications & Marketing - General","5045","Computing - Purchase of Hardware","24/06/16"
"Wolverhampton City Council","http://opendatacommunities.org/id/metropolitan-district-council/wolverhampton","PAYPAL  BARNARDOS","40","EIP Locality 7","8999","Training Expenses","24/06/16"
"Wolverhampton City Council","http://opendatacommunities.org/id/metropolitan-district-council/wolverhampton","AMAZON UK RETAIL AMAZO","13.37","Inclusion Support","5999","Equipment - Purchase","23/06/16"
"Wolverhampton City Council","http://opendatacommunities.org/id/metropolitan-district-council/wolverhampton","E01510300000000","50","Emergency Duty Team","6011","Financial Assistance In Exceptional Circ","23/06/16"
"Wolverhampton City Council","http://opendatacommunities.org/id/metropolitan-district-council/wolverhampton","RYMAN","557.44","Delivery & OCE Development","5943","Stationery","23/06/16"
"Wolverhampton City Council","http://opendatacommunities.org/id/metropolitan-district-council/wolverhampton","ARGOS LTD","82.44","LAC Transitions Team","5310","Client Allowances","23/06/16"
"Wolverhampton City Council","http://opendatacommunities.org/id/metropolitan-district-council/wolverhampton","TIMPSON LTD","8.33","Meals on Wheels","7251","Equipment - R & M","23/06/16"
"Wolverhampton City Council","http://opendatacommunities.org/id/metropolitan-district-council/wolverhampton","ASDA HOME SHOPPING","5","Upper Pendeford Farm Childrens Home","5411","Provisions (Not for resale)","23/06/16"
"Wolverhampton City Council","http://opendatacommunities.org/id/metropolitan-district-council/wolverhampton","TRAINLINE","76.7","AES Staff Development","4112","Public Transport","23/06/16"
"Wolverhampton City Council","http://opendatacommunities.org/id/metropolitan-district-council/wolverhampton","Amazon UK Marketplace","61.6","WV Active Business Support","5942","Equipment - Purchase","23/06/16"
"Wolverhampton City Council","http://opendatacommunities.org/id/metropolitan-district-council/wolverhampton","ROYAL CARPETS","316.67","LAC Transitions Team","5713","Client Allowances","23/06/16"
"Wolverhampton City Council","http://opendatacommunities.org/id/metropolitan-district-council/wolverhampton","PREMIER INN","116.25","Members Expenses","3811","Accommodation Costs","23/06/16"
"Wolverhampton City Council","http://opendatacommunities.org/id/metropolitan-district-council/wolverhampton","TVLICENSING.CO.UK","145.5","Ernest Bold Court","7392","Services - General Licences","23/06/16"
"Wolverhampton City Council","http://opendatacommunities.org/id/metropolitan-district-council/wolverhampton","ARGOS LTD","22.47","LAC Transitions Team","5310","Client Allowances","23/06/16"
"Wolverhampton City Council","http://opendatacommunities.org/id/metropolitan-district-council/wolverhampton","PRONTAPRINT WOLVERHAMP","125","Language Studies Delivery Area","2741","Publications","23/06/16"
"Wolverhampton City Council","http://opendatacommunities.org/id/metropolitan-district-council/wolverhampton","Amazon EU","93.63","Environmental Health - Pub Prot - Gen","5969","Equipment - Purchase","23/06/16"
"Wolverhampton City Council","http://opendatacommunities.org/id/metropolitan-district-council/wolverhampton","GRO HM PASSPORT OFFICE","-23.4","Head of Service - CINCP","9399","Services - Professional Fees","23/06/16"
"Wolverhampton City Council","http://opendatacommunities.org/id/metropolitan-district-council/wolverhampton","MAPLIN 268","52.22","Customer Services","5732","Equipment - Purchase","23/06/16"
"Wolverhampton City Council","http://opendatacommunities.org/id/metropolitan-district-council/wolverhampton","PREMIER INN","49.17","Adoption and Residence Team & Allowances","3811","Accommodation Costs","23/06/16"
"Wolverhampton City Council","http://opendatacommunities.org/id/metropolitan-district-council/wolverhampton","Amazon EU","13.38","Inclusion Support","5969","Equipment - Purchase","23/06/16"
"Wolverhampton City Council","http://opendatacommunities.org/id/metropolitan-district-council/wolverhampton","HM COURTS & TRIBUN","140","CIN/CP S17 SW Unit - Area 5","9399","Services - Fees and Charges","23/06/16"
"Wolverhampton City Council","http://opendatacommunities.org/id/metropolitan-district-council/wolverhampton","ARGOS LTD","249.99","LAC Transitions Team","5310","Client Allowances","23/06/16"
"Wolverhampton City Council","http://opendatacommunities.org/id/metropolitan-district-council/wolverhampton","NOTEMACHINE","250","CIN/CP S17 SW Unit - Area 6","6011","Financial Assistance In Exceptional Circ","23/06/16"
"Wolverhampton City Council","http://opendatacommunities.org/id/metropolitan-district-council/wolverhampton","B&M RETAIL","20.97","CIN/CP S17 SW Unit - Area 1","5310","Equipment - Purchase","23/06/16"
"Wolverhampton City Council","http://opendatacommunities.org/id/metropolitan-district-council/wolverhampton","B&M RETAIL","42.47","LAC Transitions Team","5310","Client Allowances","23/06/16"
"Wolverhampton City Council","http://opendatacommunities.org/id/metropolitan-district-council/wolverhampton","UNTOUCHABLES","17.5","Cemeteries","5231","Materials","23/06/16"
"Wolverhampton City Council","http://opendatacommunities.org/id/metropolitan-district-council/wolverhampton","ELLETSON PUBLISHING","590","Museum Resilience Project - ACE","7311","Marketing \ Non-staff advertising","23/06/16"
"Wolverhampton City Council","http://opendatacommunities.org/id/metropolitan-district-council/wolverhampton","Amazon UK Marketplace","11.98","Customer Services","5942","Books","23/06/16"
"Wolverhampton City Council","http://opendatacommunities.org/id/metropolitan-district-council/wolverhampton","SCREWFIX DIRECT","81.8","Beckminster","5211","Materials","23/06/16"
"Wolverhampton City Council","http://opendatacommunities.org/id/metropolitan-district-council/wolverhampton","BLAS AR FWYD CYF","204.56","Towers Outdoor Education Centre","5812","Educ Trips, Holidays, Outings, Activity","23/06/16"
"Wolverhampton City Council","http://opendatacommunities.org/id/metropolitan-district-council/wolverhampton","STATION HOTEL,","44","CIN/CP S17 SW Unit - Area 6","7011","Services - Supplies & Services to users","23/06/16"
"Wolverhampton City Council","http://opendatacommunities.org/id/metropolitan-district-council/wolverhampton","CPC","13.16","Central Baths","5065","Equipment - R & M","23/06/16"
"Wolverhampton City Council","http://opendatacommunities.org/id/metropolitan-district-council/wolverhampton","VISIT BRITAIN","273","Bantock House Museum","7991","Subscriptions","23/06/16"
"Wolverhampton City Council","http://opendatacommunities.org/id/metropolitan-district-council/wolverhampton","PREMIER INN","49.17","Safeguarding Admin Resource","3811","Accommodation Costs","23/06/16"
"Wolverhampton City Council","http://opendatacommunities.org/id/metropolitan-district-council/wolverhampton","Amazon EU","13.38","Inclusion Support","5969","Equipment - Purchase","22/06/16"
"Wolverhampton City Council","http://opendatacommunities.org/id/metropolitan-district-council/wolverhampton","PAST PRESENT AND FUTUR","162.5","LAC Transitions Team","5732","Client Allowances","22/06/16"
"Wolverhampton City Council","http://opendatacommunities.org/id/metropolitan-district-council/wolverhampton","WWW.BII.ORG","180","Education Catering - General Overheads","8398","Services - Supplies & Services to users","22/06/16"
"Wolverhampton City Council","http://opendatacommunities.org/id/metropolitan-district-council/wolverhampton","ASDA SUPERSTORE","20.05","Upper Pendeford Farm Childrens Home","5411","Provisions (Not for resale)","22/06/16"
"Wolverhampton City Council","http://opendatacommunities.org/id/metropolitan-district-council/wolverhampton","Amazon EU","13.37","Inclusion Support","5969","Equipment - Purchase","22/06/16"
"Wolverhampton City Council","http://opendatacommunities.org/id/metropolitan-district-council/wolverhampton","Amazon EU","28.87","Environmental Health - Pub Prot - Gen","5969","Equipment - Purchase","22/06/16"
"Wolverhampton City Council","http://opendatacommunities.org/id/metropolitan-district-council/wolverhampton","UNTOUCHABLES","11.75","Cemeteries","5231","Materials","22/06/16"
"Wolverhampton City Council","http://opendatacommunities.org/id/metropolitan-district-council/wolverhampton","SAINSBURYS (2340)","16.5","Civic Centre Catering","5411","Provisions (Not for resale)","22/06/16"
"Wolverhampton City Council","http://opendatacommunities.org/id/metropolitan-district-council/wolverhampton","Amazon UK Marketplace","202.99","Technical Support","5942","Computing - Purchase of Hardware","22/06/16"
"Wolverhampton City Council","http://opendatacommunities.org/id/metropolitan-district-council/wolverhampton","Virgintrains.co.uk","122","Members Expenses","4112","Public Transport","22/06/16"
"Wolverhampton City Council","http://opendatacommunities.org/id/metropolitan-district-council/wolverhampton","Amazon EU","13.38","Inclusion Support","5969","Equipment - Purchase","22/06/16"
"Wolverhampton City Council","http://opendatacommunities.org/id/metropolitan-district-council/wolverhampton","TRAINLINE","90.47","Adoption and Residence Team & Allowances","4112","Public Transport","22/06/16"
"Wolverhampton City Council","http://opendatacommunities.org/id/metropolitan-district-council/wolverhampton","G & M HALE (SUNDRIES)","4.47","Discretionary Fund","5992","Equipment - Purchase","22/06/16"
"Wolverhampton City Council","http://opendatacommunities.org/id/metropolitan-district-council/wolverhampton","ARGOS RETAIL GROUP","79.79","CIN/CP S17 SW Unit - Area 5","5310","Financial Assistance In Exceptional Circ","22/06/16"
"Wolverhampton City Council","http://opendatacommunities.org/id/metropolitan-district-council/wolverhampton","G & M HALE LTD","89","Discretionary Fund","5992","Materials","22/06/16"
"Wolverhampton City Council","http://opendatacommunities.org/id/metropolitan-district-council/wolverhampton","TRAINLINE","153.82","Adoption and Residence Team & Allowances","4112","Public Transport","22/06/16"
"Wolverhampton City Council","http://opendatacommunities.org/id/metropolitan-district-council/wolverhampton","STATION HOTEL,","44","CIN/CP S17 SW Unit - Area 6","7011","Accommodation Costs","22/06/16"
"Wolverhampton City Council","http://opendatacommunities.org/id/metropolitan-district-council/wolverhampton","OLIVER LIGHTING","82.27","Towers Outdoor Education Centre","5719","Equipment - Purchase","22/06/16"
"Wolverhampton City Council","http://opendatacommunities.org/id/metropolitan-district-council/wolverhampton","G & M HALE LTD","70","Creative Studies Delivery Area","5992","Materials for resale","22/06/16"
"Wolverhampton City Council","http://opendatacommunities.org/id/metropolitan-district-council/wolverhampton","BHS 072","10.5","Mayoral Expenses","5311","Clothing / Uniforms","22/06/16"
"Wolverhampton City Council","http://opendatacommunities.org/id/metropolitan-district-council/wolverhampton","PO LOW HILL 1592","200","EIP Locality 8","6011","Equipment - Purchase","22/06/16"
"Wolverhampton City Council","http://opendatacommunities.org/id/metropolitan-district-council/wolverhampton","TESCO STORES 5194","233.65","Towers Outdoor Education Centre","5411","Provisions (Not for resale)","22/06/16"
"Wolverhampton City Council","http://opendatacommunities.org/id/metropolitan-district-council/wolverhampton","GRO HM PASSPORT OFFICE","23.4","Head of Service - CINCP","9399","Services - Professional Fees","22/06/16"
"Wolverhampton City Council","http://opendatacommunities.org/id/metropolitan-district-council/wolverhampton","ASDA HOME SHOPPING","229.75","Upper Pendeford Farm Childrens Home","5411","Provisions (Not for resale)","22/06/16"
"Wolverhampton City Council","http://opendatacommunities.org/id/metropolitan-district-council/wolverhampton","HSBC INVOICE FINAN","598.61","Towers Outdoor Education Centre","6012","Services - Fees and Charges","22/06/16"
"Wolverhampton City Council","http://opendatacommunities.org/id/metropolitan-district-council/wolverhampton","ASDA HOME SHOPPING","-0.24","Upper Pendeford Farm Childrens Home","5411","Provisions (Not for resale)","22/06/16"
"Wolverhampton City Council","http://opendatacommunities.org/id/metropolitan-district-council/wolverhampton","Amazon EU","13.38","Inclusion Support","5969","Equipment - Purchase","22/06/16"
"Wolverhampton City Council","http://opendatacommunities.org/id/metropolitan-district-council/wolverhampton","NETWORK WEST MIDLANDS","42","CIN/CP S17 SW Unit - Area 6","9399","Public Transport","22/06/16"
"Wolverhampton City Council","http://opendatacommunities.org/id/metropolitan-district-council/wolverhampton","Virgintrains.co.uk","143.5","Members Expenses","4112","Public Transport","22/06/16"
"Wolverhampton City Council","http://opendatacommunities.org/id/metropolitan-district-council/wolverhampton","WYNNSTAY ARGICULTURAL","189.07","Towers Outdoor Education Centre","5311","Equipment - Purchase","22/06/16"
"Wolverhampton City Council","http://opendatacommunities.org/id/metropolitan-district-council/wolverhampton","TRAINLINE","228.17","Adoption and Residence Team & Allowances","4112","Public Transport","22/06/16"
"Wolverhampton City Council","http://opendatacommunities.org/id/metropolitan-district-council/wolverhampton","G & M HALE (SUNDRIES)","21.99","Creative Studies Delivery Area","5992","Materials for resale","22/06/16"
"Wolverhampton City Council","http://opendatacommunities.org/id/metropolitan-district-council/wolverhampton","TRAINLINE","36.67","Safeguarding Admin Resource","4112","Public Transport","22/06/16"
"Wolverhampton City Council","http://opendatacommunities.org/id/metropolitan-district-council/wolverhampton","PC WORLD ONLINE","-3.95","Towers Outdoor Education Centre","5732","Equipment - Purchase","22/06/16"
"Wolverhampton City Council","http://opendatacommunities.org/id/metropolitan-district-council/wolverhampton","TRAINLINE","116.59","David Ward Exhibition - NPO ACE WAG","4112","Public Transport","22/06/16"
"Wolverhampton City Council","http://opendatacommunities.org/id/metropolitan-district-council/wolverhampton","CODSALL AND WERGS GARD","17.47","Cemeteries","5261","Equipment - Purchase","22/06/16"
"Wolverhampton City Council","http://opendatacommunities.org/id/metropolitan-district-council/wolverhampton","CREATIVE FRAMING","36.69","Mayoral Expenses","5971","Fixtures and Fittings - Purchases","22/06/16"
"Wolverhampton City Council","http://opendatacommunities.org/id/metropolitan-district-council/wolverhampton","FACEBOOK QSN469AD22","0.4","Service Wide","7311","Marketing \ Non-staff advertising","22/06/16"
"Wolverhampton City Council","http://opendatacommunities.org/id/metropolitan-district-council/wolverhampton","Amazon EU","13.37","Inclusion Support","5969","Equipment - Purchase","22/06/16"
"Wolverhampton City Council","http://opendatacommunities.org/id/metropolitan-district-council/wolverhampton","HI Q TYRE SERVICES","12.5","Fleet Management","7538","Services - Professional Fees","22/06/16"
"Wolverhampton City Council","http://opendatacommunities.org/id/metropolitan-district-council/wolverhampton","TRAINLINE","71.5","Safeguarding Admin Resource","4112","Public Transport","22/06/16"
"Wolverhampton City Council","http://opendatacommunities.org/id/metropolitan-district-council/wolverhampton","Amazon EU","13.37","Inclusion Support","5969","Equipment - Purchase","22/06/16"
"Wolverhampton City Council","http://opendatacommunities.org/id/metropolitan-district-council/wolverhampton","Amazon EU","13.37","Inclusion Support","5969","Equipment - Purchase","22/06/16"
"Wolverhampton City Council","http://opendatacommunities.org/id/metropolitan-district-council/wolverhampton","AMAZON UK RETAIL AMAZO","13.38","Inclusion Support","5999","Equipment - Purchase","22/06/16"
"Wolverhampton City Council","http://opendatacommunities.org/id/metropolitan-district-council/wolverhampton","FACEBOOK PSN469AD22","99.6","Service Wide","7311","Marketing \ Non-staff advertising","22/06/16"
"Wolverhampton City Council","http://opendatacommunities.org/id/metropolitan-district-council/wolverhampton","REDWINGS LODGE","-24.96","Emergency Duty Team","7011","Services - Supplies & Services to users","21/06/16"
"Wolverhampton City Council","http://opendatacommunities.org/id/metropolitan-district-council/wolverhampton","THE QUEEN VICTORIA HOT","35","Emergency Duty Team","7011","Services - Supplies & Services to users","21/06/16"
"Wolverhampton City Council","http://opendatacommunities.org/id/metropolitan-district-council/wolverhampton","RBI EVENTS","175","HR Advice","2741","Publications","21/06/16"
"Wolverhampton City Council","http://opendatacommunities.org/id/metropolitan-district-council/wolverhampton","SAINSBURYS (2340)","77.05","Discretionary Fund","5411","Provisions (Not for resale)","21/06/16"
"Wolverhampton City Council","http://opendatacommunities.org/id/metropolitan-district-council/wolverhampton","STATION HOTEL,","44","CIN/CP S17 SW Unit - Area 6","7011","Accommodation Costs","21/06/16"
"Wolverhampton City Council","http://opendatacommunities.org/id/metropolitan-district-council/wolverhampton","REDWINGS LODGE","454.65","CIN/CP S17 SW Unit - Area 7","7011","Services - Supplies & Services to users","21/06/16"
"Wolverhampton City Council","http://opendatacommunities.org/id/metropolitan-district-council/wolverhampton","ASDA HOME SHOPPING","-0.31","Ernest Bold Court","5411","Provisions (Not for resale)","21/06/16"
"Wolverhampton City Council","http://opendatacommunities.org/id/metropolitan-district-council/wolverhampton","POUNDLAND LTD 1463","28","Learning Technologies","5310","Equipment - Purchase","21/06/16"
"Wolverhampton City Council","http://opendatacommunities.org/id/metropolitan-district-council/wolverhampton","THE QUEEN VICTORIA HOT","39","Emergency Duty Team","7011","Services - Supplies & Services to users","21/06/16"
"Wolverhampton City Council","http://opendatacommunities.org/id/metropolitan-district-council/wolverhampton","ARGOS LTD","174.9","LAC Transitions Team","5310","Client Allowances","21/06/16"
"Wolverhampton City Council","http://opendatacommunities.org/id/metropolitan-district-council/wolverhampton","C L JONES LIMITED","221.92","Towers Outdoor Education Centre","5211","Materials","21/06/16"
"Wolverhampton City Council","http://opendatacommunities.org/id/metropolitan-district-council/wolverhampton","HN NUTTALL LTD","418.29","Towers Outdoor Education Centre","5085","Equipment - Purchase","21/06/16"
"Wolverhampton City Council","http://opendatacommunities.org/id/metropolitan-district-council/wolverhampton","WELSH CANOE ASSOC","77","Towers Outdoor Education Centre","5941","Equipment - Purchase","21/06/16"
"Wolverhampton City Council","http://opendatacommunities.org/id/metropolitan-district-council/wolverhampton","Amazon EU","60","Legal Services","5969","Books","21/06/16"
"Wolverhampton City Council","http://opendatacommunities.org/id/metropolitan-district-council/wolverhampton","TVLICENSING.CO.UK","145.5","Specialist Support Service - North","7392","Services - Consultants","21/06/16"
"Wolverhampton City Council","http://opendatacommunities.org/id/metropolitan-district-council/wolverhampton","ASDA HOME SHOPPING","87.14","Ernest Bold Court","5411","Provisions (Not for resale)","21/06/16"
"Wolverhampton City Council","http://opendatacommunities.org/id/metropolitan-district-council/wolverhampton","Amazon Prime","-46.61","Legal Services","5968","Subscriptions","21/06/16"
"Wolverhampton City Council","http://opendatacommunities.org/id/metropolitan-district-council/wolverhampton","WOLVES CC","9.3","CIN/CP S17 SW Unit - Area 5","9399","Services - Fees and Charges","21/06/16"
"Wolverhampton City Council","http://opendatacommunities.org/id/metropolitan-district-council/wolverhampton","WWW.DILYSJONES.CO.UK","292.5","Central Training","8999","Training Expenses","21/06/16"
"Wolverhampton City Council","http://opendatacommunities.org/id/metropolitan-district-council/wolverhampton","HIMLEY HOUSE","141","Emergency Duty Team","7011","Services - Supplies & Services to users","21/06/16"
"Wolverhampton City Council","http://opendatacommunities.org/id/metropolitan-district-council/wolverhampton","Amazon Prime","7.99","Legal Services","5968","Subscriptions","21/06/16"
"Wolverhampton City Council","http://opendatacommunities.org/id/metropolitan-district-council/wolverhampton","Virgintrains.co.uk","59.6","LAC Team","4112","Public Transport","21/06/16"
"Wolverhampton City Council","http://opendatacommunities.org/id/metropolitan-district-council/wolverhampton","SAINSBURYS LOC4867","2.9","Mayoral Expenses","5411","Hospitality","21/06/16"
"Wolverhampton City Council","http://opendatacommunities.org/id/metropolitan-district-council/wolverhampton","ASDA SUPERSTORE","30.06","Headstart","5411","Provisions (Not for resale)","21/06/16"
"Wolverhampton City Council","http://opendatacommunities.org/id/metropolitan-district-council/wolverhampton","LOYD WEDNESFIELD WOLVE","100","Duke Street Bungalows","6011","Room Hire","21/06/16"
"Wolverhampton City Council","http://opendatacommunities.org/id/metropolitan-district-council/wolverhampton","WOLVES CC","200","CIN/CP S17 SW Unit - Area 5","9399","Services - Fees and Charges","21/06/16"
"Wolverhampton City Council","http://opendatacommunities.org/id/metropolitan-district-council/wolverhampton","Amazon EU","58.32","Environmental Health - Pub Prot - Gen","5969","Equipment - Purchase","20/06/16"
"Wolverhampton City Council","http://opendatacommunities.org/id/metropolitan-district-council/wolverhampton","REDWINGS LODGE","24.96","Emergency Duty Team","7011","Services - Supplies & Services to users","20/06/16"
"Wolverhampton City Council","http://opendatacommunities.org/id/metropolitan-district-council/wolverhampton","Amazon EU","58.32","Environmental Health - Pub Prot - Gen","5969","Equipment - Purchase","20/06/16"
"Wolverhampton City Council","http://opendatacommunities.org/id/metropolitan-district-council/wolverhampton","TRAINLINE","100.88","AES Staff Development","4112","Public Transport","20/06/16"
"Wolverhampton City Council","http://opendatacommunities.org/id/metropolitan-district-council/wolverhampton","REDWINGS LODGE","24.96","Emergency Duty Team","7011","Services - Supplies & Services to users","20/06/16"
"Wolverhampton City Council","http://opendatacommunities.org/id/metropolitan-district-council/wolverhampton","ARGOS RETAIL GROUP","27.45","Referral Team CIN - S17","5310","Equipment - Purchase","20/06/16"
"Wolverhampton City Council","http://opendatacommunities.org/id/metropolitan-district-council/wolverhampton","Amazon EU","58.32","Environmental Health - Pub Prot - Gen","5969","Equipment - Purchase","20/06/16"
"Wolverhampton City Council","http://opendatacommunities.org/id/metropolitan-district-council/wolverhampton","ASDA HOME SHOPPING","-0.1","Ernest Bold Court","5411","Provisions (Not for resale)","20/06/16"
"Wolverhampton City Council","http://opendatacommunities.org/id/metropolitan-district-council/wolverhampton","ASDA HOME SHOPPING","95.21","Ernest Bold Court","5411","Provisions (Not for resale)","20/06/16"
"Wolverhampton City Council","http://opendatacommunities.org/id/metropolitan-district-council/wolverhampton","E09009100000000","20","EIP Locality 3","6011","Financial Assistance In Exceptional Circ","20/06/16"
"Wolverhampton City Council","http://opendatacommunities.org/id/metropolitan-district-council/wolverhampton","BETTWS MOTORS LIMITED","59.8","Towers Outdoor Education Centre","7538","Vehicle Maintenance - Repairs","20/06/16"
"Wolverhampton City Council","http://opendatacommunities.org/id/metropolitan-district-council/wolverhampton","ITUNES.COM/BILL","0.79","Civic Halls Non Direct Management A/C","5735","Computing - Purchase of Software","20/06/16"
"Wolverhampton City Council","http://opendatacommunities.org/id/metropolitan-district-council/wolverhampton","RBI EVENTS","175","HR Advice","2741","Publications","20/06/16"
"Wolverhampton City Council","http://opendatacommunities.org/id/metropolitan-district-council/wolverhampton","TESCO DELIVERY SAVER2","3","Towers Outdoor Education Centre","5968","Provisions (Not for resale)","20/06/16"
"Wolverhampton City Council","http://opendatacommunities.org/id/metropolitan-district-council/wolverhampton","SAINSBURYS (2340)","19.2","Physical & Sensory Disabilities Mgmt","5411","Provisions (Not for resale)","20/06/16"
"Wolverhampton City Council","http://opendatacommunities.org/id/metropolitan-district-council/wolverhampton","Virgintrains.co.uk","52.3","Members Expenses","4112","Public Transport","20/06/16"
"Wolverhampton City Council","http://opendatacommunities.org/id/metropolitan-district-council/wolverhampton","BCC REGISTER OFFIC","15","CIN/CP S17 SW Unit - Area 3B","9399","Printing","20/06/16"
"Wolverhampton City Council","http://opendatacommunities.org/id/metropolitan-district-council/wolverhampton","Amazon EU","58.32","Environmental Health - Pub Prot - Gen","5969","Equipment - Purchase","20/06/16"
"Wolverhampton City Council","http://opendatacommunities.org/id/metropolitan-district-council/wolverhampton","BIRMINGHAM CASH REGIST","78","Bantock - Tea Rooms","7399","Equipment - R & M","20/06/16"
"Wolverhampton City Council","http://opendatacommunities.org/id/metropolitan-district-council/wolverhampton","Wix.com","93.13","Technical Support","5817","Computing - Purchase of Software","20/06/16"
"Wolverhampton City Council","http://opendatacommunities.org/id/metropolitan-district-council/wolverhampton","ASDA SUPERSTORE","12","Central Baths","5411","Provisions (Not for resale)","20/06/16"
"Wolverhampton City Council","http://opendatacommunities.org/id/metropolitan-district-council/wolverhampton","Amazon EU","58.32","Environmental Health - Pub Prot - Gen","5969","Equipment - Purchase","20/06/16"
"Wolverhampton City Council","http://opendatacommunities.org/id/metropolitan-district-council/wolverhampton","SAIN ST MARKS","260","Childrens with Disabilities Team","6011","Financial Assistance In Exceptional Circ","20/06/16"
"Wolverhampton City Council","http://opendatacommunities.org/id/metropolitan-district-council/wolverhampton","AMAZON UK RETAIL AMAZO","58.32","Environmental Health - Pub Prot - Gen","5999","Equipment - Purchase","20/06/16"
"Wolverhampton City Council","http://opendatacommunities.org/id/metropolitan-district-council/wolverhampton","AMAZON UK RETAIL AMAZO","58.32","Environmental Health - Pub Prot - Gen","5999","Equipment - Purchase","20/06/16"
"Wolverhampton City Council","http://opendatacommunities.org/id/metropolitan-district-council/wolverhampton","FACEBOOK 2NVQY8SE92","200.02","Art Gallery","7311","Marketing \ Non-staff advertising","20/06/16"
"Wolverhampton City Council","http://opendatacommunities.org/id/metropolitan-district-council/wolverhampton","REGISTRARS OFFICE","417","Head of Service - CINCP","8299","Services - Professional Fees","20/06/16"
"Wolverhampton City Council","http://opendatacommunities.org/id/metropolitan-district-council/wolverhampton","WISEPOPSCOM","35.47","City Direct","7372","Computing - Purchase of Software","20/06/16"
"Wolverhampton City Council","http://opendatacommunities.org/id/metropolitan-district-council/wolverhampton","POUNDLAND LTD 1463","72","Learning Technologies","5310","Equipment - Purchase","20/06/16"
"Wolverhampton City Council","http://opendatacommunities.org/id/metropolitan-district-council/wolverhampton","Amazon EU","58.32","Environmental Health - Pub Prot - Gen","5969","Equipment - Purchase","20/06/16"
"Wolverhampton City Council","http://opendatacommunities.org/id/metropolitan-district-council/wolverhampton","TRAINLINE","14.74","Customer Services","4112","Public Transport","20/06/16"
"Wolverhampton City Council","http://opendatacommunities.org/id/metropolitan-district-council/wolverhampton","WESTMINSTER FORUM","210","Member Training","7392","Services - Consultants","20/06/16"
"Wolverhampton City Council","http://opendatacommunities.org/id/metropolitan-district-council/wolverhampton","HARLECH FOODSERVICE LT","233.22","Towers Outdoor Education Centre","5422","Catering","20/06/16"
"Wolverhampton City Council","http://opendatacommunities.org/id/metropolitan-district-council/wolverhampton","AMAZON UK RETAIL AMAZO","58.32","Environmental Health - Pub Prot - Gen","5999","Equipment - Purchase","20/06/16"
"Wolverhampton City Council","http://opendatacommunities.org/id/metropolitan-district-council/wolverhampton","PAYPAL  BANANAPRINT","36.85","Technical Support","8931","Services - Professional Fees","20/06/16"
"Wolverhampton City Council","http://opendatacommunities.org/id/metropolitan-district-council/wolverhampton","WAITROSE 696","7.68","CIN/CP S17 SW Unit - Area 3A","5411","Comms - Postage","20/06/16"
"Wolverhampton City Council","http://opendatacommunities.org/id/metropolitan-district-council/wolverhampton","B&M RETAIL LTD","6.99","Ernest Bold Court","5310","Cleaning Supplies and Materials","20/06/16"
"Wolverhampton City Council","http://opendatacommunities.org/id/metropolitan-district-council/wolverhampton","TESCO STORES 2606","26.4","CIN/CP S17 SW Unit - Area 5","5411","Provisions (Not for resale)","17/06/16"
"Wolverhampton City Council","http://opendatacommunities.org/id/metropolitan-district-council/wolverhampton","TRAINLINE","-28.4","Adoption and Residence Team & Allowances","4112","Public Transport","17/06/16"
"Wolverhampton City Council","http://opendatacommunities.org/id/metropolitan-district-council/wolverhampton","FACEBOOK JD5F2AS4U2","200.11","Art Gallery","7311","Marketing \ Non-staff advertising","17/06/16"
"Wolverhampton City Council","http://opendatacommunities.org/id/metropolitan-district-council/wolverhampton","DULUX DECORATOR CENTRE","128.89","Contemporary Gallery","5198","Materials","17/06/16"
"Wolverhampton City Council","http://opendatacommunities.org/id/metropolitan-district-council/wolverhampton","Amazon UK Marketplace","74.99","Blakenhall Commty & Healthy Living Ctr","5942","Provisions (Resale)","17/06/16"
"Wolverhampton City Council","http://opendatacommunities.org/id/metropolitan-district-council/wolverhampton","Virgintrains.co.uk","16.8","Workforce Development","4112","Public Transport","17/06/16"
"Wolverhampton City Council","http://opendatacommunities.org/id/metropolitan-district-council/wolverhampton","SP  RINKITCOM","99.97","Catalyst Arts","5712","Equipment - Purchase","17/06/16"
"Wolverhampton City Council","http://opendatacommunities.org/id/metropolitan-district-council/wolverhampton","EE LIMITED R501","30","School Crossing Patrol","4812","Comms - Mobile Telephones","17/06/16"
"Wolverhampton City Council","http://opendatacommunities.org/id/metropolitan-district-council/wolverhampton","LIVE NATION MERCHANDIS","250","Civic Halls Non Direct Management A/C","5947","Marketing \ Non-staff advertising","17/06/16"
"Wolverhampton City Council","http://opendatacommunities.org/id/metropolitan-district-council/wolverhampton","Amazon UK Marketplace","398","Technical Support","5942","Books","17/06/16"
"Wolverhampton City Council","http://opendatacommunities.org/id/metropolitan-district-council/wolverhampton","WICKES","34.97","Community Enablement","5211","Equipment - R & M","17/06/16"
"Wolverhampton City Council","http://opendatacommunities.org/id/metropolitan-district-council/wolverhampton","ASDA SUPERSTORE","19","LAC Transitions Team","5411","Client Allowances","17/06/16"
"Wolverhampton City Council","http://opendatacommunities.org/id/metropolitan-district-council/wolverhampton","Virgintrains.co.uk","182.4","Welfare Rights","4112","Public Transport","17/06/16"
"Wolverhampton City Council","http://opendatacommunities.org/id/metropolitan-district-council/wolverhampton","ARGOS RETAIL GROUP","329.99","Learning Technologies","5310","Equipment - Purchase","17/06/16"
"Wolverhampton City Council","http://opendatacommunities.org/id/metropolitan-district-council/wolverhampton","POST OFFICE COUNTER","6.45","Carers Support","9402","Comms - Postage","17/06/16"
"Wolverhampton City Council","http://opendatacommunities.org/id/metropolitan-district-council/wolverhampton","HUGHES","416.67","LAC Transitions Team","5732","Client Allowances","17/06/16"
"Wolverhampton City Council","http://opendatacommunities.org/id/metropolitan-district-council/wolverhampton","POST OFFICE COUNTER","128","Fostering Team & Allowances","9402","Comms - Postage","17/06/16"
"Wolverhampton City Council","http://opendatacommunities.org/id/metropolitan-district-council/wolverhampton","ALDI","18.2","CIN/CP S17 SW Unit - Area 5","5411","Provisions (Not for resale)","17/06/16"
"Wolverhampton City Council","http://opendatacommunities.org/id/metropolitan-district-council/wolverhampton","THE R U COMPANY","74.98","Catalyst Arts","5712","Equipment - Purchase","17/06/16"
"Wolverhampton City Council","http://opendatacommunities.org/id/metropolitan-district-council/wolverhampton","POST OFFICE COUNTER","1.65","Emergency Duty Team","9402","Comms - Postage","17/06/16"
"Wolverhampton City Council","http://opendatacommunities.org/id/metropolitan-district-council/wolverhampton","ARGOS LTD","16.69","CIN/CP S17 SW Unit - Area 3A","5310","Equipment - Purchase","17/06/16"
"Wolverhampton City Council","http://opendatacommunities.org/id/metropolitan-district-council/wolverhampton","TRAVIS PERKINS","427.21","David Ward Exhibition - NPO ACE WAG","5211","Materials","17/06/16"
"Wolverhampton City Council","http://opendatacommunities.org/id/metropolitan-district-council/wolverhampton","PREMIER INN","94.15","Adoption and Residence Team & Allowances","3811","Accommodation Costs","17/06/16"
"Wolverhampton City Council","http://opendatacommunities.org/id/metropolitan-district-council/wolverhampton","EE LIMITED R501","40","School Crossing Patrol","4812","Comms - Mobile Telephones","17/06/16"
"Wolverhampton City Council","http://opendatacommunities.org/id/metropolitan-district-council/wolverhampton","REDWINGS LODGE","145.71","CIN/CP S17 SW Unit - Area 8","7011","Accommodation Costs","16/06/16"
"Wolverhampton City Council","http://opendatacommunities.org/id/metropolitan-district-council/wolverhampton","PC WORLD ONLINE","103.28","Towers Outdoor Education Centre","5732","Equipment - Purchase","16/06/16"
"Wolverhampton City Council","http://opendatacommunities.org/id/metropolitan-district-council/wolverhampton","WEST COAST TRAINS","28.6","Youth Offending Team","4112","Public Transport","16/06/16"
"Wolverhampton City Council","http://opendatacommunities.org/id/metropolitan-district-council/wolverhampton","WM MORRISON 024","39.26","Ernest Bold Court","5411","Provisions (Not for resale)","16/06/16"
"Wolverhampton City Council","http://opendatacommunities.org/id/metropolitan-district-council/wolverhampton","PO LOW HILL 1592","150","EIP Locality 7","6011","Equipment - Purchase","16/06/16"
"Wolverhampton City Council","http://opendatacommunities.org/id/metropolitan-district-council/wolverhampton","ARGOS LTD","24.99","CIN/CP S17 SW Unit - Area 7","5310","Equipment - Purchase","16/06/16"
"Wolverhampton City Council","http://opendatacommunities.org/id/metropolitan-district-council/wolverhampton","SHAWS & SONS LIMITED","1274","Electoral Registration","2741","Publications","16/06/16"
"Wolverhampton City Council","http://opendatacommunities.org/id/metropolitan-district-council/wolverhampton","FEARING INTL","13.99","Northicote Farm","5964","Equipment - Purchase","16/06/16"
"Wolverhampton City Council","http://opendatacommunities.org/id/metropolitan-district-council/wolverhampton","DVLA DRIVER ONLINE","34","LAC Transitions Team","9399","Client Allowances","16/06/16"
"Wolverhampton City Council","http://opendatacommunities.org/id/metropolitan-district-council/wolverhampton","FTPE WEBTIS 1","7.5","LAC Transitions Team","4112","Public Transport","16/06/16"
"Wolverhampton City Council","http://opendatacommunities.org/id/metropolitan-district-council/wolverhampton","FUEL CARD SERVICES LTD","379.73","Towers Outdoor Education Centre","7399","Petrol","16/06/16"
"Wolverhampton City Council","http://opendatacommunities.org/id/metropolitan-district-council/wolverhampton","LAKELAND.LIMITED","55.35","Towers Outdoor Education Centre","5399","Equipment - Purchase","16/06/16"
"Wolverhampton City Council","http://opendatacommunities.org/id/metropolitan-district-council/wolverhampton","GRO HM PASSPORT OFFICE","9.25","LAC Transitions Team","9399","Services - Fees and Charges","16/06/16"
"Wolverhampton City Council","http://opendatacommunities.org/id/metropolitan-district-council/wolverhampton","TESCO STORES 5194","-2.48","Towers Outdoor Education Centre","5411","Provisions (Not for resale)","16/06/16"
"Wolverhampton City Council","http://opendatacommunities.org/id/metropolitan-district-council/wolverhampton","PO LOW HILL 1592","200","EIP Locality 7","6011","Equipment - Purchase","16/06/16"
"Wolverhampton City Council","http://opendatacommunities.org/id/metropolitan-district-council/wolverhampton","WWW.GOPHERSUPPLIES.COM","46.85","Central Baths","7349","Contract Cleaning","16/06/16"
"Wolverhampton City Council","http://opendatacommunities.org/id/metropolitan-district-council/wolverhampton","FEARING INTL","36","Northicote Farm","5964","Equipment - Purchase","16/06/16"
"Wolverhampton City Council","http://opendatacommunities.org/id/metropolitan-district-council/wolverhampton","Amazon UK Marketplace","10.19","Headstart","5942","Books","16/06/16"
"Wolverhampton City Council","http://opendatacommunities.org/id/metropolitan-district-council/wolverhampton","SANGHAS SUPERMARKET","19","EIP Locality 3","5411","Provisions (Not for resale)","16/06/16"
"Wolverhampton City Council","http://opendatacommunities.org/id/metropolitan-district-council/wolverhampton","WEST MIDLANDS TRAV","60.5","CIN/CP S17 SW Unit - Area 8","4131","Public Transport","15/06/16"
"Wolverhampton City Council","http://opendatacommunities.org/id/metropolitan-district-council/wolverhampton","G & M HALE (SUNDRIES)","9.73","Discretionary Fund","5992","Materials","15/06/16"
"Wolverhampton City Council","http://opendatacommunities.org/id/metropolitan-district-council/wolverhampton","WWW.ITSLONDON.CO.UK","455.97","Art Gallery","5251","Equipment - Purchase","15/06/16"
"Wolverhampton City Council","http://opendatacommunities.org/id/metropolitan-district-council/wolverhampton","ASDA SUPERSTORE","23.43","Headstart","5411","Provisions (Not for resale)","15/06/16"
"Wolverhampton City Council","http://opendatacommunities.org/id/metropolitan-district-council/wolverhampton","ASDA HOME SHOPPING","-6.5","Upper Pendeford Farm Childrens Home","5411","Provisions (Not for resale)","15/06/16"
"Wolverhampton City Council","http://opendatacommunities.org/id/metropolitan-district-council/wolverhampton","TRAINLINE","227.05","CIN/CP S17 SW Unit - Area 4","4112","No Recourse to Public Funds","15/06/16"
"Wolverhampton City Council","http://opendatacommunities.org/id/metropolitan-district-council/wolverhampton","CURRYS ONLINE","157.99","Strategic Asset Management - General","5732","Equipment - Purchase","15/06/16"
"Wolverhampton City Council","http://opendatacommunities.org/id/metropolitan-district-council/wolverhampton","ASDA SUPERSTORE","15.75","CIN/CP S17 SW Unit - Area 5","5411","Provisions (Not for resale)","15/06/16"
"Wolverhampton City Council","http://opendatacommunities.org/id/metropolitan-district-council/wolverhampton","WWW.PITCHMARKLTD.COM","40.93","Outdoor Events Admin","5198","Materials","15/06/16"
"Wolverhampton City Council","http://opendatacommunities.org/id/metropolitan-district-council/wolverhampton","PREMIER INN","-169.98","Mental Health Assessment & Care Mgmt","3811","Services - Supplies & Services to users","15/06/16"
"Wolverhampton City Council","http://opendatacommunities.org/id/metropolitan-district-council/wolverhampton","G & M HALE (SUNDRIES)","16.62","Creative Studies Delivery Area","5992","Materials for resale","15/06/16"
"Wolverhampton City Council","http://opendatacommunities.org/id/metropolitan-district-council/wolverhampton","ASDA HOME SHOPPING","226.04","Upper Pendeford Farm Childrens Home","5411","Provisions (Not for resale)","15/06/16"
"Wolverhampton City Council","http://opendatacommunities.org/id/metropolitan-district-council/wolverhampton","G & M HALE LTD","100.9","Creative Studies Delivery Area","5992","Materials for resale","15/06/16"
"Wolverhampton City Council","http://opendatacommunities.org/id/metropolitan-district-council/wolverhampton","FIREWALKER HEALTH CLUB","100","Headstart","7538","Vehicle Maintenance - Repairs","15/06/16"
"Wolverhampton City Council","http://opendatacommunities.org/id/metropolitan-district-council/wolverhampton","WEST MIDLANDS TRAV","53","CIN/CP S17 SW Unit - Area 8","4131","Public Transport","15/06/16"
"Wolverhampton City Council","http://opendatacommunities.org/id/metropolitan-district-council/wolverhampton","Amazon UK Marketplace","2.81","Headstart","5942","Books","15/06/16"
"Wolverhampton City Council","http://opendatacommunities.org/id/metropolitan-district-council/wolverhampton","FACEBOOK JGBBY86B92","599.69","Communications & Marketing - General","7311","Marketing \ Non-staff advertising","15/06/16"
"Wolverhampton City Council","http://opendatacommunities.org/id/metropolitan-district-council/wolverhampton","TFM FARM & COUNTRY SUP","220.16","Northicote Farm","5399","Materials","15/06/16"
"Wolverhampton City Council","http://opendatacommunities.org/id/metropolitan-district-council/wolverhampton","CARVER/WOLVERHAMPTON/L","26.55","Culwell Street Depot","5211","R&M - Departmental planned (external)","15/06/16"
"Wolverhampton City Council","http://opendatacommunities.org/id/metropolitan-district-council/wolverhampton","SCREWFIX DIRECT","202.81","Independent Living Service","5211","Materials","15/06/16"
"Wolverhampton City Council","http://opendatacommunities.org/id/metropolitan-district-council/wolverhampton","ALTON TOWERS","123.84","Headstart","7991","Educ Trips, Holidays, Outings, Activity","15/06/16"
"Wolverhampton City Council","http://opendatacommunities.org/id/metropolitan-district-council/wolverhampton","ASDA SUPERSTORE","11.5","CIN/CP S17 SW Unit - Area 5","5411","Provisions (Not for resale)","15/06/16"
"Wolverhampton City Council","http://opendatacommunities.org/id/metropolitan-district-council/wolverhampton","CURRYS ONLINE","29.93","Headstart","5732","Equipment - Purchase","15/06/16"
"Wolverhampton City Council","http://opendatacommunities.org/id/metropolitan-district-council/wolverhampton","G & M HALE LTD","111.25","Discretionary Fund","5992","Materials","15/06/16"
"Wolverhampton City Council","http://opendatacommunities.org/id/metropolitan-district-council/wolverhampton","Cross Country","36.2","Traffic Signals","4112","Public Transport","15/06/16"
"Wolverhampton City Council","http://opendatacommunities.org/id/metropolitan-district-council/wolverhampton","ALTON TOWERS","154.8","Headstart","7991","Educ Trips, Holidays, Outings, Activity","15/06/16"
"Wolverhampton City Council","http://opendatacommunities.org/id/metropolitan-district-council/wolverhampton","TESCO STORES 5194","347.03","Towers Outdoor Education Centre","5411","Provisions (Not for resale)","15/06/16"
"Wolverhampton City Council","http://opendatacommunities.org/id/metropolitan-district-council/wolverhampton","WICKES","31.65","EIP Locality 7","5211","Equipment - Purchase","15/06/16"
"Wolverhampton City Council","http://opendatacommunities.org/id/metropolitan-district-council/wolverhampton","ASDA SUPERSTORE","54","CIN/CP S17 SW Unit - Area 5","5411","Provisions (Not for resale)","15/06/16"
"Wolverhampton City Council","http://opendatacommunities.org/id/metropolitan-district-council/wolverhampton","TRAINLINE","96.54","Ambrosia Project","4112","Public Transport","15/06/16"
"Wolverhampton City Council","http://opendatacommunities.org/id/metropolitan-district-council/wolverhampton","ADMIRAL SELF STORAGE L","106.89","CIN/CP S17 SW Unit - Area 5","4225","Storage","15/06/16"
"Wolverhampton City Council","http://opendatacommunities.org/id/metropolitan-district-council/wolverhampton","BRISTOW & SUTOR MOTO","1282.83","CIN/CP S17 SW Unit - Area 1","7299","Financial Assistance In Exceptional Circ","15/06/16"
"Wolverhampton City Council","http://opendatacommunities.org/id/metropolitan-district-council/wolverhampton","POST OFFICE COUNTER","174","Adoption and Residence Team & Allowances","9402","Comms - Postage","15/06/16"
"Wolverhampton City Council","http://opendatacommunities.org/id/metropolitan-district-council/wolverhampton","FIVEWAYS CONVENIENCE S","14.39","Headstart","5411","Provisions (Not for resale)","15/06/16"
"Wolverhampton City Council","http://opendatacommunities.org/id/metropolitan-district-council/wolverhampton","W'HAMPTON SWIMMING&FIT","166.5","CIN/CP S17 SW Unit - Area 3B","7997","Educ Trips, Holidays, Outings, Activity","15/06/16"
"Wolverhampton City Council","http://opendatacommunities.org/id/metropolitan-district-council/wolverhampton","TRAINLINE","273.87","Black Art Movement","4112","Public Transport","14/06/16"
"Wolverhampton City Council","http://opendatacommunities.org/id/metropolitan-district-council/wolverhampton","TVLICENSING.CO.UK","145.5","Court of Protection, Funerals Prot Prop","7392","Services - Supplies & Services to users","14/06/16"
"Wolverhampton City Council","http://opendatacommunities.org/id/metropolitan-district-council/wolverhampton","WWW.ICO.GOV.UK","35","Members Expenses","9399","Services - Fees and Charges","14/06/16"
"Wolverhampton City Council","http://opendatacommunities.org/id/metropolitan-district-council/wolverhampton","Amazon EU","14.97","Headstart","5969","Books","14/06/16"
"Wolverhampton City Council","http://opendatacommunities.org/id/metropolitan-district-council/wolverhampton","TRAINLINE","102.2","Emergency Duty Team","4112","Public Transport","14/06/16"
"Wolverhampton City Council","http://opendatacommunities.org/id/metropolitan-district-council/wolverhampton","Amazon EU","5.82","Headstart","5969","Books","14/06/16"
"Wolverhampton City Council","http://opendatacommunities.org/id/metropolitan-district-council/wolverhampton","Amazon UK Marketplace","5.61","Headstart","5942","Books","14/06/16"
"Wolverhampton City Council","http://opendatacommunities.org/id/metropolitan-district-council/wolverhampton","DOLITTLES","-162.27","Northicote Farm","5995","Equipment - Purchase","14/06/16"
"Wolverhampton City Council","http://opendatacommunities.org/id/metropolitan-district-council/wolverhampton","REDWINGS LODGE","120.75","CIN/CP S17 SW Unit - Area 8","7011","Accommodation Costs","14/06/16"
"Wolverhampton City Council","http://opendatacommunities.org/id/metropolitan-district-council/wolverhampton","B & Q 1243","44.36","Ernest Bold Court","5211","Equipment - R & M","14/06/16"
"Wolverhampton City Council","http://opendatacommunities.org/id/metropolitan-district-council/wolverhampton","Amazon UK Marketplace","7.74","Headstart","5942","Books","14/06/16"
"Wolverhampton City Council","http://opendatacommunities.org/id/metropolitan-district-council/wolverhampton","MEDIA & COMMUNICATIONS","149","Revenues","4812","Comms - Mobile Telephones","14/06/16"
"Wolverhampton City Council","http://opendatacommunities.org/id/metropolitan-district-council/wolverhampton","UNTOUCHABLES","36.46","Cemeteries","5231","Materials","14/06/16"
"Wolverhampton City Council","http://opendatacommunities.org/id/metropolitan-district-council/wolverhampton","AMAZON UK RETAIL AMAZO","115.87","Technical Support","5999","Equipment - Purchase","14/06/16"
"Wolverhampton City Council","http://opendatacommunities.org/id/metropolitan-district-council/wolverhampton","TRAINLINE","109.85","Adoption and Residence Team & Allowances","4112","Public Transport","14/06/16"
"Wolverhampton City Council","http://opendatacommunities.org/id/metropolitan-district-council/wolverhampton","WWW.ICO.GOV.UK","35","Members Expenses","9399","Subscriptions","14/06/16"
"Wolverhampton City Council","http://opendatacommunities.org/id/metropolitan-district-council/wolverhampton","REGISTRARS OFFICE","7","CIN/CP S17 SW Unit - Area 3B","8299","Printing","14/06/16"
"Wolverhampton City Council","http://opendatacommunities.org/id/metropolitan-district-council/wolverhampton","34SP.com Ltd","25","Play General","4816","Computing - Purchase of Software","14/06/16"
"Wolverhampton City Council","http://opendatacommunities.org/id/metropolitan-district-council/wolverhampton","SCREWFIX DIRECT","342.28","Technician","5211","Equipment - Purchase","14/06/16"
"Wolverhampton City Council","http://opendatacommunities.org/id/metropolitan-district-council/wolverhampton","ASDA SUPERSTORE","107.05","Swan Bank","5411","Provisions (Not for resale)","14/06/16"
"Wolverhampton City Council","http://opendatacommunities.org/id/metropolitan-district-council/wolverhampton","WWW.ICO.GOV.UK","35","Members Expenses","9399","Subscriptions","14/06/16"
"Wolverhampton City Council","http://opendatacommunities.org/id/metropolitan-district-council/wolverhampton","FTPE WEBTIS 1","32","LAC Transitions Team","4112","Client Allowances","14/06/16"
"Wolverhampton City Council","http://opendatacommunities.org/id/metropolitan-district-council/wolverhampton","POST OFFICE COUNTER","170.25","LAC Team","9402","Financial Assistance In Exceptional Circ","14/06/16"
"Wolverhampton City Council","http://opendatacommunities.org/id/metropolitan-district-council/wolverhampton","WWW.ICO.GOV.UK","35","Members Expenses","9399","Subscriptions","14/06/16"
"Wolverhampton City Council","http://opendatacommunities.org/id/metropolitan-district-council/wolverhampton","MBL SEMINARS","40","Legal Services","8299","Training Expenses","14/06/16"
"Wolverhampton City Council","http://opendatacommunities.org/id/metropolitan-district-council/wolverhampton","WWW.ICO.GOV.UK","35","Members Expenses","9399","Subscriptions","14/06/16"
"Wolverhampton City Council","http://opendatacommunities.org/id/metropolitan-district-council/wolverhampton","FTPE WEBTIS 1","7.5","LAC Transitions Team","4112","Public Transport","14/06/16"
"Wolverhampton City Council","http://opendatacommunities.org/id/metropolitan-district-council/wolverhampton","ARGOS LTD","7.98","Macmillan Welfare Rights","5310","Stationery","14/06/16"
"Wolverhampton City Council","http://opendatacommunities.org/id/metropolitan-district-council/wolverhampton","FTPE WEBTIS 1","19","LAC Transitions Team","4112","Client Allowances","14/06/16"
"Wolverhampton City Council","http://opendatacommunities.org/id/metropolitan-district-council/wolverhampton","REDWINGS LODGE","45.79","Mental Health Assessment & Care Mgmt","7011","Services - Supplies & Services to users","14/06/16"
"Wolverhampton City Council","http://opendatacommunities.org/id/metropolitan-district-council/wolverhampton","SAINSBURYS (2340)","55","Leonardo Da Vinci Project","5411","Provisions (Not for resale)","14/06/16"
"Wolverhampton City Council","http://opendatacommunities.org/id/metropolitan-district-council/wolverhampton","WWW.ICO.GOV.UK","35","Members Expenses","9399","Subscriptions","14/06/16"
"Wolverhampton City Council","http://opendatacommunities.org/id/metropolitan-district-council/wolverhampton","CIEH LIMITED","50","Environmental Health - Pub Prot - Gen","8699","Services - Fees and Charges","14/06/16"
"Wolverhampton City Council","http://opendatacommunities.org/id/metropolitan-district-council/wolverhampton","NOTEMACHINE","250","CIN/CP S17 SW Unit - Area 6","6011","Financial Assistance In Exceptional Circ","14/06/16"
"Wolverhampton City Council","http://opendatacommunities.org/id/metropolitan-district-council/wolverhampton","FSPRG.COM INFFUSE.COM","5.05","Technical Support","5734","Computing - Purchase of Software","14/06/16"
"Wolverhampton City Council","http://opendatacommunities.org/id/metropolitan-district-council/wolverhampton","Wix.com","1.9","Technical Support","5817","Computing - Purchase of Software","13/06/16"
"Wolverhampton City Council","http://opendatacommunities.org/id/metropolitan-district-council/wolverhampton","WM MORRISON 024","76.13","Ernest Bold Court","5411","Provisions (Not for resale)","13/06/16"
"Wolverhampton City Council","http://opendatacommunities.org/id/metropolitan-district-council/wolverhampton","EBUYER (UK) LTD","224.99","Learning Technologies","5722","Equipment - Purchase","13/06/16"
"Wolverhampton City Council","http://opendatacommunities.org/id/metropolitan-district-council/wolverhampton","HOME LEISURE DIRECT LT","94.14","Towers Outdoor Education Centre","5941","Equipment - Purchase","13/06/16"
"Wolverhampton City Council","http://opendatacommunities.org/id/metropolitan-district-council/wolverhampton","LUX","340","Black Art Movement","8398","Services - Supplies & Services to users","13/06/16"
"Wolverhampton City Council","http://opendatacommunities.org/id/metropolitan-district-council/wolverhampton","THE CONSORTIUM/WMS","28.14","Black Art Movement","5968","Materials","13/06/16"
"Wolverhampton City Council","http://opendatacommunities.org/id/metropolitan-district-council/wolverhampton","Amazon UK Marketplace","35.21","Members Expenses","5942","Computing - Consumables","13/06/16"
"Wolverhampton City Council","http://opendatacommunities.org/id/metropolitan-district-council/wolverhampton","HALX WOLVERHAMPTON MAN","50","Carers Support","6011","Financial Assistance In Exceptional Circ","13/06/16"
"Wolverhampton City Council","http://opendatacommunities.org/id/metropolitan-district-council/wolverhampton","CRESTA WORLD TRAVEL","50","Leonardo Da Vinci Project","4722","Public Transport","13/06/16"
"Wolverhampton City Council","http://opendatacommunities.org/id/metropolitan-district-council/wolverhampton","Virgintrains.co.uk","169.9","LAC Team","4112","Public Transport","13/06/16"
"Wolverhampton City Council","http://opendatacommunities.org/id/metropolitan-district-council/wolverhampton","VWO.com","42.02","City Direct","7399","Equipment - Purchase","13/06/16"
"Wolverhampton City Council","http://opendatacommunities.org/id/metropolitan-district-council/wolverhampton","Amazon UK Marketplace","9.98","Global Budgets","5942","Books","13/06/16"
"Wolverhampton City Council","http://opendatacommunities.org/id/metropolitan-district-council/wolverhampton","TRAINLINE","252.45","Civic Halls Non Direct Management A/C","4112","Public Transport","13/06/16"
"Wolverhampton City Council","http://opendatacommunities.org/id/metropolitan-district-council/wolverhampton","Amazon UK Marketplace","577.69","Customer Services","5942","Books","13/06/16"
"Wolverhampton City Council","http://opendatacommunities.org/id/metropolitan-district-council/wolverhampton","Amazon UK Marketplace","11.64","Global Budgets","5942","Books","13/06/16"
"Wolverhampton City Council","http://opendatacommunities.org/id/metropolitan-district-council/wolverhampton","NATWEST BANK","200","Democratic Support","6011","Public Transport","13/06/16"
"Wolverhampton City Council","http://opendatacommunities.org/id/metropolitan-district-council/wolverhampton","E018640 0000000","150","EIP Locality 8","6011","Equipment - Purchase","13/06/16"
"Wolverhampton City Council","http://opendatacommunities.org/id/metropolitan-district-council/wolverhampton","Amazon UK Marketplace","16.36","Technical Support","5942","Computing - Purchase of Hardware","13/06/16"
"Wolverhampton City Council","http://opendatacommunities.org/id/metropolitan-district-council/wolverhampton","TENSATOR LTD","1917.75","Electoral Registration","5085","Equipment - Purchase","13/06/16"
"Wolverhampton City Council","http://opendatacommunities.org/id/metropolitan-district-council/wolverhampton","REDWINGS LODGE","29.12","Emergency Duty Team","7011","Services - Supplies & Services to users","13/06/16"
"Wolverhampton City Council","http://opendatacommunities.org/id/metropolitan-district-council/wolverhampton","AMAZON UK RETAIL AMAZO","26.22","Headstart","5999","Books","13/06/16"
"Wolverhampton City Council","http://opendatacommunities.org/id/metropolitan-district-council/wolverhampton","WM MORRISONS","19.5","Learning Disabilities Management","5411","Provisions (Not for resale)","13/06/16"
"Wolverhampton City Council","http://opendatacommunities.org/id/metropolitan-district-council/wolverhampton","CRESTA WORLD TRAVEL","20","Leonardo Da Vinci Project","4722","Public Transport","13/06/16"
"Wolverhampton City Council","http://opendatacommunities.org/id/metropolitan-district-council/wolverhampton","FLOORCARESUPPLIES","235.34","Civic Halls Non Direct Management A/C","7349","Contract Cleaning","13/06/16"
"Wolverhampton City Council","http://opendatacommunities.org/id/metropolitan-district-council/wolverhampton","RYANAIR","113.63","Learning Technologies","3246","Public Transport","13/06/16"
"Wolverhampton City Council","http://opendatacommunities.org/id/metropolitan-district-council/wolverhampton","KONICA MINOLTA BUSINES","290.42","Music Support Team","7399","Equipment - R & M","13/06/16"
"Wolverhampton City Council","http://opendatacommunities.org/id/metropolitan-district-council/wolverhampton","NOVOTEL HOTELS","8.95","Mayoral Expenses","3642","Subsistence","13/06/16"
"Wolverhampton City Council","http://opendatacommunities.org/id/metropolitan-district-council/wolverhampton","Amazon UK Marketplace","4.37","Headstart","5942","Books","13/06/16"
"Wolverhampton City Council","http://opendatacommunities.org/id/metropolitan-district-council/wolverhampton","Amazon UK Marketplace","119.16","Customer Services","5942","Books","13/06/16"
"Wolverhampton City Council","http://opendatacommunities.org/id/metropolitan-district-council/wolverhampton","SANDWELL M.B.C.","99.9","LAC Transitions Team","9399","Client Allowances","13/06/16"
"Wolverhampton City Council","http://opendatacommunities.org/id/metropolitan-district-council/wolverhampton","CRESTA WORLD TRAVEL","20","Leonardo Da Vinci Project","4722","Public Transport","13/06/16"
"Wolverhampton City Council","http://opendatacommunities.org/id/metropolitan-district-council/wolverhampton","ARGOS RETAIL GROUP","119.98","EIP Locality 1","5310","Equipment - Purchase","13/06/16"
"Wolverhampton City Council","http://opendatacommunities.org/id/metropolitan-district-council/wolverhampton","ASDA SUPERSTORE","32","Central Baths","5411","Provisions (Not for resale)","13/06/16"
"Wolverhampton City Council","http://opendatacommunities.org/id/metropolitan-district-council/wolverhampton","THE YORK HOTEL","126","CIN/CP S17 SW Unit - Area 6","7011","Accommodation Costs","13/06/16"
"Wolverhampton City Council","http://opendatacommunities.org/id/metropolitan-district-council/wolverhampton","RYANAIR","277.42","Learning Technologies","3246","Public Transport","13/06/16"
"Wolverhampton City Council","http://opendatacommunities.org/id/metropolitan-district-council/wolverhampton","WIX.COM","93.12","Technical Support","5734","Computing - Purchase of Software","13/06/16"
"Wolverhampton City Council","http://opendatacommunities.org/id/metropolitan-district-council/wolverhampton","UNI OF WOLVERHAMPT","414","AES Staff Development","8220","Training Expenses","13/06/16"
"Wolverhampton City Council","http://opendatacommunities.org/id/metropolitan-district-council/wolverhampton","BALSAMIQ","63.39","Customer Services","5734","Computing - Purchase of Software","13/06/16"
"Wolverhampton City Council","http://opendatacommunities.org/id/metropolitan-district-council/wolverhampton","Amazon EU","12.49","Headstart","5969","Books","13/06/16"
"Wolverhampton City Council","http://opendatacommunities.org/id/metropolitan-district-council/wolverhampton","WWW.MAPLIN.CO.UK","54.16","Music Support Team","5732","Equipment - R & M","13/06/16"
"Wolverhampton City Council","http://opendatacommunities.org/id/metropolitan-district-council/wolverhampton","Amazon UK Marketplace","2.47","Headstart","5942","Books","13/06/16"
"Wolverhampton City Council","http://opendatacommunities.org/id/metropolitan-district-council/wolverhampton","CRESTA WORLD TRAVEL","50","Leonardo Da Vinci Project","4722","Public Transport","13/06/16"
"Wolverhampton City Council","http://opendatacommunities.org/id/metropolitan-district-council/wolverhampton","MUSIC MANIA","462.5","Civic Halls Non Direct Management A/C","5735","Marketing \ Non-staff advertising","13/06/16"
"Wolverhampton City Council","http://opendatacommunities.org/id/metropolitan-district-council/wolverhampton","Wix.com","46.57","Technical Support","5817","Computing - Purchase of Software","10/06/16"
"Wolverhampton City Council","http://opendatacommunities.org/id/metropolitan-district-council/wolverhampton","SEVERN TRENT WATER","-74.23","CIN/CP S17 SW Unit - Area 5","4900","Water Charges","10/06/16"
"Wolverhampton City Council","http://opendatacommunities.org/id/metropolitan-district-council/wolverhampton","CURRYS ONLINE","287.48","LAC Transitions Team","5732","Client Allowances","10/06/16"
"Wolverhampton City Council","http://opendatacommunities.org/id/metropolitan-district-council/wolverhampton","Amazon UK Marketplace","39.99","Technical Support","5942","Books","10/06/16"
"Wolverhampton City Council","http://opendatacommunities.org/id/metropolitan-district-council/wolverhampton","TRAINLINE","35.14","Adoption Team","4112","Public Transport","10/06/16"
"Wolverhampton City Council","http://opendatacommunities.org/id/metropolitan-district-council/wolverhampton","ASDA SUPERSTORE","29","Intensive Family Support Team","5411","Provisions (Not for resale)","10/06/16"
"Wolverhampton City Council","http://opendatacommunities.org/id/metropolitan-district-council/wolverhampton","HOME BARGAINS","9.9","CIN/CP S17 SW Unit - Area 2","5251","Equipment - Purchase","10/06/16"
"Wolverhampton City Council","http://opendatacommunities.org/id/metropolitan-district-council/wolverhampton","EXPEDIA 112244076279","5","Learning Technologies","4722","Conference Expenses","10/06/16"
"Wolverhampton City Council","http://opendatacommunities.org/id/metropolitan-district-council/wolverhampton","TRAINLINE","181.05","Legal Services","4112","Public Transport","10/06/16"
"Wolverhampton City Council","http://opendatacommunities.org/id/metropolitan-district-council/wolverhampton","WEST COAST TRAINS","6.5","Black Art Movement","4112","Public Transport","10/06/16"
"Wolverhampton City Council","http://opendatacommunities.org/id/metropolitan-district-council/wolverhampton","SAINSBURYS 2040","33.15","Children & Young People Support Costs","5411","Provisions (Not for resale)","10/06/16"
"Wolverhampton City Council","http://opendatacommunities.org/id/metropolitan-district-council/wolverhampton","WWW.CARESHOP.CO.UK","57.18","Ernest Bold Court","5999","Equipment - Purchase","10/06/16"
"Wolverhampton City Council","http://opendatacommunities.org/id/metropolitan-district-council/wolverhampton","Amazon UK Marketplace","57.98","Parent / Partnership Service","5942","Comms - Postage","10/06/16"
"Wolverhampton City Council","http://opendatacommunities.org/id/metropolitan-district-council/wolverhampton","EXPEDIA 112244076279","26","Learning Technologies","4722","Public Transport","10/06/16"
"Wolverhampton City Council","http://opendatacommunities.org/id/metropolitan-district-council/wolverhampton","TRAINLINE","184.11","Revenues","4112","Public Transport","10/06/16"
"Wolverhampton City Council","http://opendatacommunities.org/id/metropolitan-district-council/wolverhampton","THE YORK HOTEL","126","CIN/CP S17 SW Unit - Area 6","7011","Accommodation Costs","10/06/16"
"Wolverhampton City Council","http://opendatacommunities.org/id/metropolitan-district-council/wolverhampton","SCREWFIX DIRECT","87.47","Collections & Conservation","5211","Equipment - Purchase","10/06/16"
"Wolverhampton City Council","http://opendatacommunities.org/id/metropolitan-district-council/wolverhampton","SUITES AND BEDS","55","CIN/CP S17 SW Unit - Area 8","5712","Equipment - Purchase","10/06/16"
"Wolverhampton City Council","http://opendatacommunities.org/id/metropolitan-district-council/wolverhampton","LB CROYDON","10.17","LAC Team","9399","Financial Assistance In Exceptional Circ","10/06/16"
"Wolverhampton City Council","http://opendatacommunities.org/id/metropolitan-district-council/wolverhampton","ASDA SUPERSTORE","11.43","Civic Centre Catering","5411","Provisions (Not for resale)","10/06/16"
"Wolverhampton City Council","http://opendatacommunities.org/id/metropolitan-district-council/wolverhampton","WWW.ABREU.PT","339.7","Learning Technologies","4722","Conference Expenses","10/06/16"
"Wolverhampton City Council","http://opendatacommunities.org/id/metropolitan-district-council/wolverhampton","FINE SOLUTIONS NOTTING","50.75","Craftplay","5945","Materials","10/06/16"
"Wolverhampton City Council","http://opendatacommunities.org/id/metropolitan-district-council/wolverhampton","REGIONAL PUBLICATIONS","730","Meals on Wheels","5942","Books","10/06/16"
"Wolverhampton City Council","http://opendatacommunities.org/id/metropolitan-district-council/wolverhampton","B & Q 1243","5","Caretakers Community Centre","5211","R&M - Departmental planned (external)","10/06/16"
"Wolverhampton City Council","http://opendatacommunities.org/id/metropolitan-district-council/wolverhampton","Amazon EU","120.63","Headstart","5969","Equipment - Purchase","10/06/16"
"Wolverhampton City Council","http://opendatacommunities.org/id/metropolitan-district-council/wolverhampton","WAITROSE 696","1.66","Discretionary Fund","5411","Materials","10/06/16"
"Wolverhampton City Council","http://opendatacommunities.org/id/metropolitan-district-council/wolverhampton","ASDA HOME SHOPPING","54.6","46a, Second Avenue, Low Hill","5411","Provisions (Not for resale)","10/06/16"
"Wolverhampton City Council","http://opendatacommunities.org/id/metropolitan-district-council/wolverhampton","WWW.ABREU.PT","339.7","Learning Technologies","4722","Conference Expenses","10/06/16"
"Wolverhampton City Council","http://opendatacommunities.org/id/metropolitan-district-council/wolverhampton","Amazon UK Marketplace","102.49","Learning Technologies","5942","Computing - Purchase of Hardware","10/06/16"
"Wolverhampton City Council","http://opendatacommunities.org/id/metropolitan-district-council/wolverhampton","SAINSBURYS (2340)","10.24","Mayoral Expenses","5411","Hospitality","10/06/16"
"Wolverhampton City Council","http://opendatacommunities.org/id/metropolitan-district-council/wolverhampton","POST OFFICE COUNTER","64","CIN/CP S17 SW Unit - Area 8","9402","Comms - Postage","10/06/16"
"Wolverhampton City Council","http://opendatacommunities.org/id/metropolitan-district-council/wolverhampton","Amazon UK Marketplace","60.6","Parent / Partnership Service","5942","Comms - Postage","10/06/16"
"Wolverhampton City Council","http://opendatacommunities.org/id/metropolitan-district-council/wolverhampton","Amazon UK Marketplace","124.96","Technical Support","5942","Computing - Purchase of Hardware","10/06/16"
"Wolverhampton City Council","http://opendatacommunities.org/id/metropolitan-district-council/wolverhampton","WWW.ICO.GOV.UK","35","Members Expenses","9399","Subscriptions","09/06/16"
"Wolverhampton City Council","http://opendatacommunities.org/id/metropolitan-district-council/wolverhampton","CENTRAL HOTEL","80","LAC Team","7011","Services - Supplies & Services to users","09/06/16"
"Wolverhampton City Council","http://opendatacommunities.org/id/metropolitan-district-council/wolverhampton","CUMMINGS BROTHERS LOCK","5","Bilston Town Hall","7399","Equipment - Purchase","09/06/16"
"Wolverhampton City Council","http://opendatacommunities.org/id/metropolitan-district-council/wolverhampton","WIGAN COUNCIL","20.3","CIN/CP S17 SW Unit - Area 8","9399","Services - Fees and Charges","09/06/16"
"Wolverhampton City Council","http://opendatacommunities.org/id/metropolitan-district-council/wolverhampton","WWW.ICO.GOV.UK","35","Members Expenses","9399","Subscriptions","09/06/16"
"Wolverhampton City Council","http://opendatacommunities.org/id/metropolitan-district-council/wolverhampton","TESCO STORES 5194","-1.98","Towers Outdoor Education Centre","5411","Provisions (Not for resale)","09/06/16"
"Wolverhampton City Council","http://opendatacommunities.org/id/metropolitan-district-council/wolverhampton","TRAINLINE","164.22","AES Staff Development","4112","Public Transport","09/06/16"
"Wolverhampton City Council","http://opendatacommunities.org/id/metropolitan-district-council/wolverhampton","REGISTRARS OFFICE","50","LAC Team","8299","Financial Assistance In Exceptional Circ","09/06/16"
"Wolverhampton City Council","http://opendatacommunities.org/id/metropolitan-district-council/wolverhampton","Amazon UK Marketplace","239","Technical Support","5942","Computing - Purchase of Hardware","09/06/16"
"Wolverhampton City Council","http://opendatacommunities.org/id/metropolitan-district-council/wolverhampton","EBUYER (UK) LTD","266.6","Technical Support","5722","Equipment - Purchase","09/06/16"
"Wolverhampton City Council","http://opendatacommunities.org/id/metropolitan-district-council/wolverhampton","TVLICENSING.CO.UK","145.5","LAC Transitions Team","7392","Client Allowances","09/06/16"
"Wolverhampton City Council","http://opendatacommunities.org/id/metropolitan-district-council/wolverhampton","FTPE WEBTIS 1","74.7","LAC Transitions Team","4112","Client Allowances","09/06/16"
"Wolverhampton City Council","http://opendatacommunities.org/id/metropolitan-district-council/wolverhampton","P AND J NEWTON","3.33","Northicote Farm","5261","Materials","09/06/16"
"Wolverhampton City Council","http://opendatacommunities.org/id/metropolitan-district-council/wolverhampton","Amazon UK Marketplace","65.58","Central Training","5942","Books","09/06/16"
"Wolverhampton City Council","http://opendatacommunities.org/id/metropolitan-district-council/wolverhampton","DOLITTLES","175.6","Northicote Farm","5995","Equipment - Purchase","09/06/16"
"Wolverhampton City Council","http://opendatacommunities.org/id/metropolitan-district-council/wolverhampton","Amazon EU","9.98","Towers Outdoor Education Centre","5969","Equipment - Purchase","09/06/16"
"Wolverhampton City Council","http://opendatacommunities.org/id/metropolitan-district-council/wolverhampton","PO LOW HILL 1592","150","46a, Second Avenue, Low Hill","6011","Financial Assistance In Exceptional Circ","09/06/16"
"Wolverhampton City Council","http://opendatacommunities.org/id/metropolitan-district-council/wolverhampton","Amazon UK Marketplace","9.65","Customer Services","5942","Books","09/06/16"
"Wolverhampton City Council","http://opendatacommunities.org/id/metropolitan-district-council/wolverhampton","B&M RETAIL LTD","14.16","CIN/CP S17 SW Unit - Area 8","5310","Equipment - Purchase","09/06/16"
"Wolverhampton City Council","http://opendatacommunities.org/id/metropolitan-district-council/wolverhampton","REDWINGS LODGE","249.79","CIN/CP S17 SW Unit - Area 8","7011","Accommodation Costs","09/06/16"
"Wolverhampton City Council","http://opendatacommunities.org/id/metropolitan-district-council/wolverhampton","Amazon UK Marketplace","16.29","Global Budgets","5942","Books","09/06/16"
"Wolverhampton City Council","http://opendatacommunities.org/id/metropolitan-district-council/wolverhampton","Amazon UK Marketplace","13.74","Technical Support","5942","Computing - Purchase of Hardware","09/06/16"
"Wolverhampton City Council","http://opendatacommunities.org/id/metropolitan-district-council/wolverhampton","LUFTHANSA","305.89","Museum Resilience Project - ACE","3008","Public Transport","09/06/16"
"Wolverhampton City Council","http://opendatacommunities.org/id/metropolitan-district-council/wolverhampton","WWW.ICO.GOV.UK","35","Members Expenses","9399","Subscriptions","09/06/16"
"Wolverhampton City Council","http://opendatacommunities.org/id/metropolitan-district-council/wolverhampton","THE ABBEY HOTEL","66","LAC Team","7011","Financial Assistance In Exceptional Circ","09/06/16"
"Wolverhampton City Council","http://opendatacommunities.org/id/metropolitan-district-council/wolverhampton","AMAZON UK RETAIL AMAZO","21.5","Mental Health Assessment & Care Mgmt","5999","Equipment - Purchase","09/06/16"
"Wolverhampton City Council","http://opendatacommunities.org/id/metropolitan-district-council/wolverhampton","WILKO RETAIL LIMIT","39.15","Service Wide","5722","Cleaning Supplies and Materials","08/06/16"
"Wolverhampton City Council","http://opendatacommunities.org/id/metropolitan-district-council/wolverhampton","THE NEWBURY HOTEL","75","LAC Team","7011","Services - Supplies & Services to users","08/06/16"
"Wolverhampton City Council","http://opendatacommunities.org/id/metropolitan-district-council/wolverhampton","ARGOS RETAIL GROUP","112.49","LAC Transitions Team","5310","Client Allowances","08/06/16"
"Wolverhampton City Council","http://opendatacommunities.org/id/metropolitan-district-council/wolverhampton","Amazon Prime","-79","LAC Transitions Team","5968","Client Allowances","08/06/16"
"Wolverhampton City Council","http://opendatacommunities.org/id/metropolitan-district-council/wolverhampton","ARGOS LTD","289.11","LAC Transitions Team","5310","Client Allowances","08/06/16"
"Wolverhampton City Council","http://opendatacommunities.org/id/metropolitan-district-council/wolverhampton","WWW.ICO.GOV.UK","35","Members Expenses","9399","Subscriptions","08/06/16"
"Wolverhampton City Council","http://opendatacommunities.org/id/metropolitan-district-council/wolverhampton","G & M HALE LTD","155.55","Creative Studies Delivery Area","5992","Materials for resale","08/06/16"
"Wolverhampton City Council","http://opendatacommunities.org/id/metropolitan-district-council/wolverhampton","PREMIER INN","169.98","Mental Health Assessment & Care Mgmt","3811","Services - Supplies & Services to users","08/06/16"
"Wolverhampton City Council","http://opendatacommunities.org/id/metropolitan-district-council/wolverhampton","WWW.ICO.GOV.UK","35","Members Expenses","9399","Subscriptions","08/06/16"
"Wolverhampton City Council","http://opendatacommunities.org/id/metropolitan-district-council/wolverhampton","123-REG.CO.UK","233.73","WV Active Business Support","4816","Computing - Purchase of Software","08/06/16"
"Wolverhampton City Council","http://opendatacommunities.org/id/metropolitan-district-council/wolverhampton","POST OFFICE COUNTER","2.06","CIN/CP Social Work Unit - Area 4","9402","Comms - Postage","08/06/16"
"Wolverhampton City Council","http://opendatacommunities.org/id/metropolitan-district-council/wolverhampton","Virgintrains.co.uk","84.7","LAC Team","4112","Public Transport","08/06/16"
"Wolverhampton City Council","http://opendatacommunities.org/id/metropolitan-district-council/wolverhampton","REDWINGS LODGE","6.62","CIN/CP S17 SW Unit - Area 2","7011","TPP - B&B payments to landlords","08/06/16"
"Wolverhampton City Council","http://opendatacommunities.org/id/metropolitan-district-council/wolverhampton","WWW.ICO.GOV.UK","35","Members Expenses","9399","Subscriptions","08/06/16"
"Wolverhampton City Council","http://opendatacommunities.org/id/metropolitan-district-council/wolverhampton","TESCO STORES 5194","256.31","Towers Outdoor Education Centre","5411","Provisions (Not for resale)","08/06/16"
"Wolverhampton City Council","http://opendatacommunities.org/id/metropolitan-district-council/wolverhampton","G & M HALE (SUNDRIES)","17.24","Discretionary Fund","5992","Materials","08/06/16"
"Wolverhampton City Council","http://opendatacommunities.org/id/metropolitan-district-council/wolverhampton","Amazon EU","51.64","Headstart","5969","Equipment - Purchase","08/06/16"
"Wolverhampton City Council","http://opendatacommunities.org/id/metropolitan-district-council/wolverhampton","G & M HALE LTD","91.25","Discretionary Fund","5992","Materials","08/06/16"
"Wolverhampton City Council","http://opendatacommunities.org/id/metropolitan-district-council/wolverhampton","WWW.ICO.GOV.UK","35","Members Expenses","9399","Subscriptions","08/06/16"
"Wolverhampton City Council","http://opendatacommunities.org/id/metropolitan-district-council/wolverhampton","G & M HALE (SUNDRIES)","5","Creative Studies Delivery Area","5992","Materials for resale","08/06/16"
"Wolverhampton City Council","http://opendatacommunities.org/id/metropolitan-district-council/wolverhampton","Virgintrains.co.uk","109","HRA General","4112","Public Transport","08/06/16"
"Wolverhampton City Council","http://opendatacommunities.org/id/metropolitan-district-council/wolverhampton","POST OFFICE COUNTER","64","Inclusion Support","9402","Comms - Postage","08/06/16"
"Wolverhampton City Council","http://opendatacommunities.org/id/metropolitan-district-council/wolverhampton","ARGOS LTD","49.95","LAC Transitions Team","5310","Client Allowances","08/06/16"
"Wolverhampton City Council","http://opendatacommunities.org/id/metropolitan-district-council/wolverhampton","SAINSBURYS SACAT (2340","21.08","Mayoral Expenses","5411","Hospitality","08/06/16"
"Wolverhampton City Council","http://opendatacommunities.org/id/metropolitan-district-council/wolverhampton","WWW.ICO.GOV.UK","35","Members Expenses","9399","Subscriptions","08/06/16"
"Wolverhampton City Council","http://opendatacommunities.org/id/metropolitan-district-council/wolverhampton","ZEPHYR RACING PENNANTS","159","Mayoral Expenses","5399","Hospitality","08/06/16"
"Wolverhampton City Council","http://opendatacommunities.org/id/metropolitan-district-council/wolverhampton","TRAINLINE","153.82","Adoption and Residence Team & Allowances","4112","Public Transport","08/06/16"
"Wolverhampton City Council","http://opendatacommunities.org/id/metropolitan-district-council/wolverhampton","PREMIER INN","169.98","Mental Health Assessment & Care Mgmt","3811","Services - Supplies & Services to users","08/06/16"
"Wolverhampton City Council","http://opendatacommunities.org/id/metropolitan-district-council/wolverhampton","WWW.ICO.GOV.UK","35","Members Expenses","9399","Subscriptions","08/06/16"
"Wolverhampton City Council","http://opendatacommunities.org/id/metropolitan-district-council/wolverhampton","REDWINGS LODGE","149.87","CIN/CP S17 SW Unit - Area 2","7011","TPP - B&B payments to landlords","08/06/16"
"Wolverhampton City Council","http://opendatacommunities.org/id/metropolitan-district-council/wolverhampton","WWW.ICO.GOV.UK","35","Members Expenses","9399","Subscriptions","08/06/16"
"Wolverhampton City Council","http://opendatacommunities.org/id/metropolitan-district-council/wolverhampton","NATWEST BANK","250","CIN/CP S17 SW Unit - Area 5","6011","Financial Assistance In Exceptional Circ","08/06/16"
"Wolverhampton City Council","http://opendatacommunities.org/id/metropolitan-district-council/wolverhampton","DRI TechSmith","30.07","City Direct","5734","Computing - Purchase of Software","08/06/16"
"Wolverhampton City Council","http://opendatacommunities.org/id/metropolitan-district-council/wolverhampton","SAINSBURYS LOCAL (4357","4","Civic Centre Catering","5411","Provisions (Not for resale)","08/06/16"
"Wolverhampton City Council","http://opendatacommunities.org/id/metropolitan-district-council/wolverhampton","Virgintrains.co.uk","53.5","Members Expenses","4112","Public Transport","08/06/16"
"Wolverhampton City Council","http://opendatacommunities.org/id/metropolitan-district-council/wolverhampton","E.ON ENERGY SOLUTIONS","200","CIN/CP S17 SW Unit - Area 5","4900","Electricity","08/06/16"
"Wolverhampton City Council","http://opendatacommunities.org/id/metropolitan-district-council/wolverhampton","WOLVES CC","88","CIN/CP S17 SW Unit - Area 5","9399","Services - Fees and Charges","08/06/16"
"Wolverhampton City Council","http://opendatacommunities.org/id/metropolitan-district-council/wolverhampton","SAINSBURYS (2340)","86.31","Discretionary Fund","5411","Provisions (Not for resale)","08/06/16"
"Wolverhampton City Council","http://opendatacommunities.org/id/metropolitan-district-council/wolverhampton","WWW.ICO.GOV.UK","35","Members Expenses","9399","Services - Fees and Charges","08/06/16"
"Wolverhampton City Council","http://opendatacommunities.org/id/metropolitan-district-council/wolverhampton","ZEPHYR RACING PENNANTS","159","Mayoral Expenses","5399","Hospitality","08/06/16"
"Wolverhampton City Council","http://opendatacommunities.org/id/metropolitan-district-council/wolverhampton","WM MORRISON 024","5.96","Ernest Bold Court","5411","Provisions (Not for resale)","08/06/16"
"Wolverhampton City Council","http://opendatacommunities.org/id/metropolitan-district-council/wolverhampton","Virgintrains.co.uk","86.5","LAC Team","4112","Public Transport","08/06/16"
"Wolverhampton City Council","http://opendatacommunities.org/id/metropolitan-district-council/wolverhampton","BCC REGISTER OFFIC","15","Head of Service - CINCP","9399","Services - Professional Fees","08/06/16"
"Wolverhampton City Council","http://opendatacommunities.org/id/metropolitan-district-council/wolverhampton","GRO HM PASSPORT OFFICE","23.4","Head of Service - CINCP","9399","Services - Professional Fees","08/06/16"
"Wolverhampton City Council","http://opendatacommunities.org/id/metropolitan-district-council/wolverhampton","REDWINGS LODGE","6.62","CIN/CP S17 SW Unit - Area 2","7011","TPP - B&B payments to landlords","08/06/16"
"Wolverhampton City Council","http://opendatacommunities.org/id/metropolitan-district-council/wolverhampton","CURRYS ONLINE","234.98","CIN/CP S17 SW Unit - Area 3A","5732","Furniture","08/06/16"
"Wolverhampton City Council","http://opendatacommunities.org/id/metropolitan-district-council/wolverhampton","WWW.ICO.GOV.UK","35","Members Expenses","9399","Subscriptions","08/06/16"
"Wolverhampton City Council","http://opendatacommunities.org/id/metropolitan-district-council/wolverhampton","Amazon UK Marketplace","12.8","LAC Transitions Team","5942","Client Allowances","08/06/16"
"Wolverhampton City Council","http://opendatacommunities.org/id/metropolitan-district-council/wolverhampton","SCREWFIX DIRECT","88.29","Bilston Town Hall","5211","Equipment - Purchase","08/06/16"
"Wolverhampton City Council","http://opendatacommunities.org/id/metropolitan-district-council/wolverhampton","WWW.ICO.GOV.UK","35","Members Expenses","9399","Subscriptions","08/06/16"
"Wolverhampton City Council","http://opendatacommunities.org/id/metropolitan-district-council/wolverhampton","Santander","50","Ernest Bold Court","6011","Training Expenses","08/06/16"
"Wolverhampton City Council","http://opendatacommunities.org/id/metropolitan-district-council/wolverhampton","WWW.ICO.GOV.UK","35","Members Expenses","9399","Subscriptions","08/06/16"
"Wolverhampton City Council","http://opendatacommunities.org/id/metropolitan-district-council/wolverhampton","NATWEST BANK","250","CIN/CP S17 SW Unit - Area 5","6011","Financial Assistance In Exceptional Circ","08/06/16"
"Wolverhampton City Council","http://opendatacommunities.org/id/metropolitan-district-council/wolverhampton","Virgintrains.co.uk","108.5","Private Sector Housing","4112","Public Transport","08/06/16"
"Wolverhampton City Council","http://opendatacommunities.org/id/metropolitan-district-council/wolverhampton","Amazon UK Marketplace","29.98","Customer Services","5942","Books","08/06/16"
"Wolverhampton City Council","http://opendatacommunities.org/id/metropolitan-district-council/wolverhampton","SAIN WEDNESFIELD","50","Duke Street Bungalows","6011","Financial Assistance In Exceptional Circ","07/06/16"
"Wolverhampton City Council","http://opendatacommunities.org/id/metropolitan-district-council/wolverhampton","Amazon UK Marketplace","6.99","Inclusion Support","5942","Stationery","07/06/16"
"Wolverhampton City Council","http://opendatacommunities.org/id/metropolitan-district-council/wolverhampton","Cross Country","7.5","Commissioning Disabilities","4112","Public Transport","07/06/16"
"Wolverhampton City Council","http://opendatacommunities.org/id/metropolitan-district-council/wolverhampton","TRAINLINE","645.86","Legal Services","4112","Public Transport","07/06/16"
"Wolverhampton City Council","http://opendatacommunities.org/id/metropolitan-district-council/wolverhampton","Virgintrains.co.uk","24.5","LAC Team","4112","Public Transport","07/06/16"
"Wolverhampton City Council","http://opendatacommunities.org/id/metropolitan-district-council/wolverhampton","WOLVES CC","120","CIN/CP S17 SW Unit - Area 5","9399","Services - Fees and Charges","07/06/16"
"Wolverhampton City Council","http://opendatacommunities.org/id/metropolitan-district-council/wolverhampton","COZENS & COLE LTD","76.2","Customer Services","5251","Equipment - Purchase","07/06/16"
"Wolverhampton City Council","http://opendatacommunities.org/id/metropolitan-district-council/wolverhampton","TEAMROCKCOM","52.49","Civic Halls Non Direct Management A/C","5192","Subscriptions","07/06/16"
"Wolverhampton City Council","http://opendatacommunities.org/id/metropolitan-district-council/wolverhampton","TRAINLINE","31.98","Delivery & OCE Development","4112","Public Transport","07/06/16"
"Wolverhampton City Council","http://opendatacommunities.org/id/metropolitan-district-council/wolverhampton","SAIN WEDNESFIELD","50","Duke Street Bungalows","6011","Financial Assistance In Exceptional Circ","07/06/16"
"Wolverhampton City Council","http://opendatacommunities.org/id/metropolitan-district-council/wolverhampton","WM MORRISONS","7.56","CIN/CP Social Work Unit - Area 6","5411","Comms - Postage","07/06/16"
"Wolverhampton City Council","http://opendatacommunities.org/id/metropolitan-district-council/wolverhampton","ASDA STORES 4452","195.26","Upper Pendeford Farm Childrens Home","5411","Provisions (Not for resale)","07/06/16"
"Wolverhampton City Council","http://opendatacommunities.org/id/metropolitan-district-council/wolverhampton","SAIN WEDNESFIELD","50","Duke Street Bungalows","6011","Financial Assistance In Exceptional Circ","07/06/16"
"Wolverhampton City Council","http://opendatacommunities.org/id/metropolitan-district-council/wolverhampton","ASDA SUPERSTORE","9","Children & Family Contact Services","5411","Provisions (Not for resale)","07/06/16"
"Wolverhampton City Council","http://opendatacommunities.org/id/metropolitan-district-council/wolverhampton","TRAINLINE","123.32","Delivery & OCE Development","4112","Public Transport","07/06/16"
"Wolverhampton City Council","http://opendatacommunities.org/id/metropolitan-district-council/wolverhampton","OYSTER RENEW WEB","30","Legal Services","4112","Public Transport","07/06/16"
"Wolverhampton City Council","http://opendatacommunities.org/id/metropolitan-district-council/wolverhampton","TVLICENSING.CO.UK","145.5","Duke Street Bungalows","7392","Services - General Licences","07/06/16"
"Wolverhampton City Council","http://opendatacommunities.org/id/metropolitan-district-council/wolverhampton","OYSTER RENEW WEB","25","Legal Services","4112","Public Transport","07/06/16"
"Wolverhampton City Council","http://opendatacommunities.org/id/metropolitan-district-council/wolverhampton","REDWINGS LODGE","6.62","CIN/CP S17 SW Unit - Area 2","7011","TPP - B&B payments to landlords","07/06/16"
"Wolverhampton City Council","http://opendatacommunities.org/id/metropolitan-district-council/wolverhampton","BLITZ RECYCLING LTD","195","EIP Locality 7","7394","Equipment - Purchase","07/06/16"
"Wolverhampton City Council","http://opendatacommunities.org/id/metropolitan-district-council/wolverhampton","TRAINLINE","36.47","CIN/CP S17 SW Unit - Area 8","4112","Public Transport","07/06/16"
"Wolverhampton City Council","http://opendatacommunities.org/id/metropolitan-district-council/wolverhampton","TVLICENSING.CO.UK","145.5","Duke Street Bungalows","7392","Services - General Licences","07/06/16"
"Wolverhampton City Council","http://opendatacommunities.org/id/metropolitan-district-council/wolverhampton","TRAINLINE","140.56","Delivery & OCE Development","4112","Public Transport","07/06/16"
"Wolverhampton City Council","http://opendatacommunities.org/id/metropolitan-district-council/wolverhampton","Amazon UK Marketplace","109.99","Bert Williams Leisure Centre","5942","Equipment - Purchase","07/06/16"
"Wolverhampton City Council","http://opendatacommunities.org/id/metropolitan-district-council/wolverhampton","SAINSBURYS SACAT (2340","3.06","Mayoral Expenses","5411","Hospitality","06/06/16"
"Wolverhampton City Council","http://opendatacommunities.org/id/metropolitan-district-council/wolverhampton","REDWINGS LODGE","104.08","CIN/CP S17 SW Unit - Area 2","7011","TPP - B&B payments to landlords","06/06/16"
"Wolverhampton City Council","http://opendatacommunities.org/id/metropolitan-district-council/wolverhampton","THE YORK HOTEL","168","CIN/CP S17 SW Unit - Area 6","7011","Accommodation Costs","06/06/16"
"Wolverhampton City Council","http://opendatacommunities.org/id/metropolitan-district-council/wolverhampton","NEC SALES LEDGER","5610","Combined Authority","7399","Conference Expenses","06/06/16"
"Wolverhampton City Council","http://opendatacommunities.org/id/metropolitan-district-council/wolverhampton","REDWINGS LODGE","46.37","CIN/CP S17 SW Unit - Area 2","7011","Services - Supplies & Services to users","06/06/16"
"Wolverhampton City Council","http://opendatacommunities.org/id/metropolitan-district-council/wolverhampton","RICHARD WILLIAMS","228.17","Towers Outdoor Education Centre","5211","Equipment - Purchase","06/06/16"
"Wolverhampton City Council","http://opendatacommunities.org/id/metropolitan-district-council/wolverhampton","THE POST OFFICE","49","LAC Team","9402","Services - Fees and Charges","06/06/16"
"Wolverhampton City Council","http://opendatacommunities.org/id/metropolitan-district-council/wolverhampton","WM MORRISON 024","18.15","Ernest Bold Court","5411","Provisions (Not for resale)","06/06/16"
"Wolverhampton City Council","http://opendatacommunities.org/id/metropolitan-district-council/wolverhampton","TRELLO","3.56","City Direct","5045","Computing - Purchase of Hardware","06/06/16"
"Wolverhampton City Council","http://opendatacommunities.org/id/metropolitan-district-council/wolverhampton","NORTHERN POTTERY & LIN","28.56","Towers Outdoor Education Centre","5099","Fixtures and Fittings - Purchases","06/06/16"
"Wolverhampton City Council","http://opendatacommunities.org/id/metropolitan-district-council/wolverhampton","Amazon UK Marketplace","344.74","CIN - Referral Hub","5942","Computing - Purchase of Hardware","06/06/16"
"Wolverhampton City Council","http://opendatacommunities.org/id/metropolitan-district-council/wolverhampton","ASDA HOME SHOPPING","-1","Swan Bank","5411","Provisions (Not for resale)","06/06/16"
"Wolverhampton City Council","http://opendatacommunities.org/id/metropolitan-district-council/wolverhampton","ARGOS LTD","41.66","LAC Transitions Team","5310","Client Allowances","06/06/16"
"Wolverhampton City Council","http://opendatacommunities.org/id/metropolitan-district-council/wolverhampton","SAVGSTR GYMEQUIPMENT","64.17","Aldersley Leisure Village","5999","Equipment - Purchase","06/06/16"
"Wolverhampton City Council","http://opendatacommunities.org/id/metropolitan-district-council/wolverhampton","WICKES","4.98","Parks/Open Spaces - R & M","5211","Materials","06/06/16"
"Wolverhampton City Council","http://opendatacommunities.org/id/metropolitan-district-council/wolverhampton","ASDA HOME SHOPPING","136.21","Swan Bank","5411","Provisions (Not for resale)","06/06/16"
"Wolverhampton City Council","http://opendatacommunities.org/id/metropolitan-district-council/wolverhampton","BOOKWHEN","9","Craftplay","7372","Computing - Purchase of Software","06/06/16"
"Wolverhampton City Council","http://opendatacommunities.org/id/metropolitan-district-council/wolverhampton","THE POST OFFICE","9.75","LAC Team","9402","Services - Fees and Charges","06/06/16"
"Wolverhampton City Council","http://opendatacommunities.org/id/metropolitan-district-council/wolverhampton","ARGOS LTD","256.92","CIN/CP S17 SW Unit - Area 6","5310","Equipment - Purchase","06/06/16"
"Wolverhampton City Council","http://opendatacommunities.org/id/metropolitan-district-council/wolverhampton","123 REG R/T","6.99","Art Gallery","5968","Marketing \ Non-staff advertising","06/06/16"
"Wolverhampton City Council","http://opendatacommunities.org/id/metropolitan-district-council/wolverhampton","IN  ELLIPTICS, LTD.","708.46","Global Budgets","7372","Computing - Purchase of Software","06/06/16"
"Wolverhampton City Council","http://opendatacommunities.org/id/metropolitan-district-council/wolverhampton","THE POST OFFICE","5.5","Northicote Farm","9402","Comms - Postage","06/06/16"
"Wolverhampton City Council","http://opendatacommunities.org/id/metropolitan-district-council/wolverhampton","REDWINGS LODGE","6.62","CIN/CP S17 SW Unit - Area 2","7011","TPP - B&B payments to landlords","06/06/16"
"Wolverhampton City Council","http://opendatacommunities.org/id/metropolitan-district-council/wolverhampton","ARGOS LTD","199.17","LAC Transitions Team","5310","Client Allowances","06/06/16"
"Wolverhampton City Council","http://opendatacommunities.org/id/metropolitan-district-council/wolverhampton","ARGOS LTD","46.64","LAC Transitions Team","5310","Client Allowances","06/06/16"
"Wolverhampton City Council","http://opendatacommunities.org/id/metropolitan-district-council/wolverhampton","WP-RUBBER STAMPS ETC","164.88","Electoral Registration","5399","Equipment - Purchase","03/06/16"
"Wolverhampton City Council","http://opendatacommunities.org/id/metropolitan-district-council/wolverhampton","LOYD MORR WILLENHALL","250","CIN/CP S17 SW Unit - Area 6","6011","Financial Assistance In Exceptional Circ","03/06/16"
"Wolverhampton City Council","http://opendatacommunities.org/id/metropolitan-district-council/wolverhampton","ARGOS RETAIL GROUP","169.99","LAC Team","5310","Equipment - Purchase","03/06/16"
"Wolverhampton City Council","http://opendatacommunities.org/id/metropolitan-district-council/wolverhampton","A F BLAKEMORE & SON LT","47.42","Mayoral Expenses","5411","Hospitality","03/06/16"
"Wolverhampton City Council","http://opendatacommunities.org/id/metropolitan-district-council/wolverhampton","Amazon Prime","79","LAC Transitions Team","5968","Client Allowances","03/06/16"
"Wolverhampton City Council","http://opendatacommunities.org/id/metropolitan-district-council/wolverhampton","REDWINGS LODGE","316.42","MAST 8 - Wednesfield","7011","Services - Supplies & Services to users","03/06/16"
"Wolverhampton City Council","http://opendatacommunities.org/id/metropolitan-district-council/wolverhampton","FTPE WEBTIS 1","19","LAC Transitions Team","4112","Client Allowances","03/06/16"
"Wolverhampton City Council","http://opendatacommunities.org/id/metropolitan-district-council/wolverhampton","CARVER/WOLVERHAMPTON/L","20.47","Wholesale Market Facilities Management","5211","Cleaning Supplies and Materials","03/06/16"
"Wolverhampton City Council","http://opendatacommunities.org/id/metropolitan-district-council/wolverhampton","CENTURY ELECTRICAL WHO","22.62","Condition Surveys","5065","Equipment - R & M","03/06/16"
"Wolverhampton City Council","http://opendatacommunities.org/id/metropolitan-district-council/wolverhampton","TRAINLINE","332.01","Communications & Marketing - General","4112","Public Transport","03/06/16"
"Wolverhampton City Council","http://opendatacommunities.org/id/metropolitan-district-council/wolverhampton","Amazon EU","168.95","Technical Support","5969","Equipment - Purchase","03/06/16"
"Wolverhampton City Council","http://opendatacommunities.org/id/metropolitan-district-council/wolverhampton","ASDA SUPERSTORE","23","CIN/CP S17 SW Unit - Area 5","5411","Provisions (Not for resale)","03/06/16"
"Wolverhampton City Council","http://opendatacommunities.org/id/metropolitan-district-council/wolverhampton","A F BLAKEMORE & SON LT","65.03","Mayoral Expenses","5411","Hospitality","03/06/16"
"Wolverhampton City Council","http://opendatacommunities.org/id/metropolitan-district-council/wolverhampton","WATERSTONES.COM","19.95","Archives","5942","Books","03/06/16"
"Wolverhampton City Council","http://opendatacommunities.org/id/metropolitan-district-council/wolverhampton","HOMEBASE LTD 103","79.16","LAC Transitions Team","5211","Client Allowances","03/06/16"
"Wolverhampton City Council","http://opendatacommunities.org/id/metropolitan-district-council/wolverhampton","Amazon UK Marketplace","19.83","Towers Outdoor Education Centre","5942","Equipment - Purchase","03/06/16"
"Wolverhampton City Council","http://opendatacommunities.org/id/metropolitan-district-council/wolverhampton","TVLICENSING.CO.UK","145.5","Court of Protection, Funerals Prot Prop","7392","Services - Supplies & Services to users","02/06/16"
"Wolverhampton City Council","http://opendatacommunities.org/id/metropolitan-district-council/wolverhampton","Amazon UK Marketplace","10.82","Aldersley Leisure Village","5942","Equipment - Purchase","02/06/16"
"Wolverhampton City Council","http://opendatacommunities.org/id/metropolitan-district-council/wolverhampton","THE YORK HOTEL","126","CIN/CP S17 SW Unit - Area 6","7011","Accommodation Costs","02/06/16"
"Wolverhampton City Council","http://opendatacommunities.org/id/metropolitan-district-council/wolverhampton","Virgintrains.co.uk","259.4","Schools HR Consultants","4112","Public Transport","02/06/16"
"Wolverhampton City Council","http://opendatacommunities.org/id/metropolitan-district-council/wolverhampton","TRAINLINE","176.77","Fostering Team & Allowances","4112","Public Transport","02/06/16"
"Wolverhampton City Council","http://opendatacommunities.org/id/metropolitan-district-council/wolverhampton","Amazon UK Marketplace","39.65","Ground Maintenance East","5942","Equipment - Purchase","02/06/16"
"Wolverhampton City Council","http://opendatacommunities.org/id/metropolitan-district-council/wolverhampton","HY-TEN WELDED MESH CO","133","Northicote Farm","1761","R&M - Departmental response (external)","02/06/16"
"Wolverhampton City Council","http://opendatacommunities.org/id/metropolitan-district-council/wolverhampton","CT WOLVERHAMPTON","92.5","CIN/CP S17 SW Unit - Area 1","8398","Services - Supplies & Services to users","02/06/16"
"Wolverhampton City Council","http://opendatacommunities.org/id/metropolitan-district-council/wolverhampton","Amazon EU","25.71","Expenditure","5969","Equipment - Purchase","02/06/16"
"Wolverhampton City Council","http://opendatacommunities.org/id/metropolitan-district-council/wolverhampton","STATIONERY OFFICE BOOK","113.65","Patching","5942","Books","02/06/16"
"Wolverhampton City Council","http://opendatacommunities.org/id/metropolitan-district-council/wolverhampton","TFM FARM & COUNTRY SUP","79.62","Northicote Farm","5399","Equipment - Purchase","02/06/16"
"Wolverhampton City Council","http://opendatacommunities.org/id/metropolitan-district-council/wolverhampton","Amazon UK Marketplace","12.35","Aldersley Leisure Village","5942","Equipment - Purchase","02/06/16"
"Wolverhampton City Council","http://opendatacommunities.org/id/metropolitan-district-council/wolverhampton","TFM FARM & COUNTRY SUP","89.65","Northicote Farm","5399","Equipment - Purchase","02/06/16"
"Wolverhampton City Council","http://opendatacommunities.org/id/metropolitan-district-council/wolverhampton","CORPORATE INSIGNIA LTD","95.55","WV Active Business Support","5943","Clothing / Uniforms","02/06/16"
"Wolverhampton City Council","http://opendatacommunities.org/id/metropolitan-district-council/wolverhampton","MAPLIN 268","16.66","Telecare","5732","Equipment - Purchase","02/06/16"
"Wolverhampton City Council","http://opendatacommunities.org/id/metropolitan-district-council/wolverhampton","WWW.SEVERNTRENTSEARCHE","130","Disposal Costs","4900","Services - Professional Fees","02/06/16"
"Wolverhampton City Council","http://opendatacommunities.org/id/metropolitan-district-council/wolverhampton","REDWINGS LODGE","212.33","CIN/CP S17 SW Unit - Area 2","7011","TPP - B&B payments to landlords","02/06/16"
"Wolverhampton City Council","http://opendatacommunities.org/id/metropolitan-district-council/wolverhampton","CORPORATE INSIGNIA LTD","-95.55","WV Active Business Support","5943","Clothing / Uniforms","02/06/16"
"Wolverhampton City Council","http://opendatacommunities.org/id/metropolitan-district-council/wolverhampton","THE POST OFFICE","58.75","LAC Team","9402","Comms - Postage","02/06/16"
"Wolverhampton City Council","http://opendatacommunities.org/id/metropolitan-district-council/wolverhampton","HY-TEN WELDED MESH CO","133","Northicote Farm","1761","R&M - Departmental response (external)","02/06/16"
"Wolverhampton City Council","http://opendatacommunities.org/id/metropolitan-district-council/wolverhampton","GRO HM PASSPORT OFFICE","-23.4","Disposal Costs","9399","Services - Professional Fees","02/06/16"
"Wolverhampton City Council","http://opendatacommunities.org/id/metropolitan-district-council/wolverhampton","Amazon UK Marketplace","24.92","Aldersley Leisure Village","5942","Equipment - Purchase","02/06/16"
"Wolverhampton City Council","http://opendatacommunities.org/id/metropolitan-district-council/wolverhampton","Amazon UK Marketplace","2.71","Aldersley Leisure Village","5942","Equipment - Purchase","02/06/16"
"Wolverhampton City Council","http://opendatacommunities.org/id/metropolitan-district-council/wolverhampton","FTPE WEBTIS 1","74.7","LAC Transitions Team","4112","Client Allowances","01/06/16"
"Wolverhampton City Council","http://opendatacommunities.org/id/metropolitan-district-council/wolverhampton","AthleteBV","52.82","Aldersley Leisure Village","5655","Equipment - Purchase","01/06/16"
"Wolverhampton City Council","http://opendatacommunities.org/id/metropolitan-district-council/wolverhampton","GRO HM PASSPORT OFFICE","46.8","Disposal Costs","9399","Services - Professional Fees","01/06/16"
"Wolverhampton City Council","http://opendatacommunities.org/id/metropolitan-district-council/wolverhampton","Amazon UK Marketplace","7.83","Global Budgets","5942","Books","01/06/16"
"Wolverhampton City Council","http://opendatacommunities.org/id/metropolitan-district-council/wolverhampton","FACEBOOK 6FBAQ925U2","162.91","Civic Halls Non Direct Management A/C","7311","Marketing \ Non-staff advertising","01/06/16"
"Wolverhampton City Council","http://opendatacommunities.org/id/metropolitan-district-council/wolverhampton","FACEBOOK ERD629EE92","18.98","Civic Halls Non Direct Management A/C","7311","Marketing \ Non-staff advertising","01/06/16"
"Wolverhampton City Council","http://opendatacommunities.org/id/metropolitan-district-council/wolverhampton","Amazon UK Marketplace","103.14","Ground Maintenance East","5942","Equipment - Purchase","01/06/16"
"Wolverhampton City Council","http://opendatacommunities.org/id/metropolitan-district-council/wolverhampton","Amazon EU","49.2","Northicote Farm","5969","Clothing / Uniforms","01/06/16"
"Wolverhampton City Council","http://opendatacommunities.org/id/metropolitan-district-council/wolverhampton","MASTERS TRADITIONAL","113.64","Aldersley Leisure Village","5945","Equipment - Purchase","01/06/16"
"Wolverhampton City Council","http://opendatacommunities.org/id/metropolitan-district-council/wolverhampton","FACEBOOK TT9T29SA92","147.59","Communications & Marketing - General","7311","Marketing \ Non-staff advertising","01/06/16"
"Wolverhampton City Council","http://opendatacommunities.org/id/metropolitan-district-council/wolverhampton","TRAINLINE","-12.1","City Direct","4112","Public Transport","01/06/16"
"Wolverhampton City Council","http://opendatacommunities.org/id/metropolitan-district-council/wolverhampton","Amazon UK Marketplace","299.99","CIN - Referral Hub","5942","Computing - Purchase of Hardware","01/06/16"
"Wolverhampton City Council","http://opendatacommunities.org/id/metropolitan-district-council/wolverhampton","WM MORRISON 024","20.42","Ernest Bold Court","5411","Provisions (Not for resale)","01/06/16"
"Wolverhampton City Council","http://opendatacommunities.org/id/metropolitan-district-council/wolverhampton","Amazon UK Marketplace","24.76","Global Budgets","5942","Books","01/06/16"
